Workbook

Sheet ENG
I1: P.O. Box 570, DK-3900 Nuuk, Greenland Phone: +299 36 12 00 Fax: +299 36 12 12
A2: Application for logistics support Greenland Institute of Natural Resources
A4: Reserved for GINR (Booking number)
A5: ='Vær del.'!A5 -> 0
A7: Basic information
A8: *1) Date of application (DD-MM-YYYY) | F8: *2) GINR / GCRC project number – if available
A11: *3) Project title
A14: *4) Affiliated contact person GINR (Greenland Institute of Natural Resources) :
A17: *5) Invoice address | E17: Payment
A18: Department
A19: Responsible
A20: Street name
A21: Zip code
A22: City
A23: Phone nr.
A24: E-mail
A25: EAN Nr./GLN
A26: VAT
A28: *6) Invoice payment | E28: Kreditkort | H28: Send an invoice
A30: *7) Contact person while/if PI is in the field
A31: Name:
A32: Adresse:
A33: Phone:
A34: E-mail:
A36: * 8) Brief description of project
A47: Standard terms & conditions
A49: · GINR is not able to undertake housing of customer equipment within or between field seasons.
A50: · All special equipment and consumables - including weapons, clothing, equipment for communication, navigation and camping - necessary to carry out a project at GINR must be provided by the individual project itself.
A51: · GINR will normally not charge services before they are completed. However, in all cases, GINR reserves the right to charge the full amount of any given service immediately after a booking has been agreed.
A52: · All types of bookings may be cancelled by the costumer free of charge until 7 calendar days before delivery of the booked service. If the costumer cancels his booking later than 7 calendar days before completion – or does not show up at all at the time agreed - GINR reserves the right to charge the full amount of the service booked.
A53: Specification of need for logistics support
A57: *9) How many persons | C57: 1 | I57: From date(s) | J57: To date(s)
B58: Name(s) | E58: e-mail | G58: phone | I58: (DD-MM-YY) | J58: (DD-MM-YY)
A59: Person 1
A60: Person 2
A61: Person 3
A62: Person 4
A63: Person 5
A64: Person 6
A65: Person 7
A66: Person 8
A67: Person 9
A68: Person 10
A71: * 10) Meals at GINR (consisting of a daily lunch buffet)
A72: How many persons | C72: 1 | E72: From date(s) | F72: To date(s)
B73: Name(s) | E73: (DD-MM-YY) | F73: (DD-MM-YY)
A74: Person 1
A75: Person 2
A76: Person 3
A77: Person 4
A78: Person 5
A79: Person 6
A80: Person 7
A81: Person 8
A82: Person 9
A83: Person 10
A84: * 11) Does your project intend to ship any cargo to GINR?
A85: In this case please specify: Type, size (in m3), weight (in kg), number of colli and shipping type (cargo/air)
A88: * 12) Other needs for logistics support at Greenland Institute of Natural Resources (GINR) Please specify
A93: * 13)Reserved for GINR (List of changes) Date(s), change

Sheet Vær del. (hidden)
B5: Bookingnr.:
A6: Ansvarlig GN-vært
A7: Projektleder / Principal investigator
B8: =ENG!B15 -> 0
A10: Bruger/gæst
A11: Nr. | B11: Navn | E11: E-mail | G11: Tlf
A12: 1 | B12: =ENG!B59 -> 0 | E12: =ENG!E59 -> 0 | G12: =ENG!G59 -> 0
A13: 2 | B13: =ENG!B60 -> 0 | E13: =ENG!E60 -> 0 | G13: =ENG!G60 -> 0
A14: 3 | B14: =ENG!B61 -> 0 | E14: =ENG!E61 -> 0 | G14: =ENG!G61 -> 0
A15: 4 | B15: =ENG!B62 -> 0 | E15: =ENG!E62 -> 0 | G15: =ENG!G62 -> 0
A16: 5 | B16: =ENG!B63 -> 0 | E16: =ENG!E63 -> 0 | G16: =ENG!G63 -> 0
A17: 6 | B17: =ENG!B64 -> 0 | E17: =ENG!E64 -> 0 | G17: =ENG!G64 -> 0
A18: 7 | B18: =ENG!B65 -> 0 | E18: =ENG!E65 -> 0 | G18: =ENG!G65 -> 0
A19: 8 | B19: =ENG!B66 -> 0 | E19: =ENG!E66 -> 0 | G19: =ENG!G66 -> 0
A20: 9 | B20: =ENG!B67 -> 0 | E20: =ENG!E67 -> 0 | G20: =ENG!G67 -> 0
A21: 10 | B21: =ENG!B68 -> 0 | E21: =ENG!E68 -> 0 | G21: =ENG!G68 -> 0
A23: Faktureringsadresse
A24: =ENG!A18 -> Department | B24: =ENG!B18 -> 0
A25: =ENG!A19 -> Responsible | B25: =ENG!B19 -> 0
A26: =ENG!A20 -> Street name | B26: =ENG!B20 -> 0
A27: =ENG!A21 -> Zip code | B27: =ENG!B21 -> 0
A28: =ENG!A22 -> City | B28: =ENG!B22 -> 0
A29: =ENG!A23 -> Phone nr. | B29: =ENG!B23 -> 0
A30: =ENG!A24 -> E-mail | B30: =ENG!B24 -> 0
A31: =ENG!A25 -> EAN Nr./GLN | B31: =ENG!B25 -> 0
A32: =ENG!A26 -> VAT | B32: =ENG!B26 -> 0
A34: Projektnummer
A35: Projektnummer | D35: Intern / Ekstern
A36: =ENG!F9 -> 0 | D36: =ENG!H9 -> 0
A38: Navn | D38: Bolig | E38: Nr. | F38: Ankomstdag | G38: Afrejsedag
A39: =ENG!B59 -> 0 | F39: =ENG!I59 -> 00:00:00 | G39: =ENG!J59 -> 00:00:00
A40: =ENG!B60 -> 0 | F40: =ENG!I60 -> 00:00:00 | G40: =ENG!J60 -> 00:00:00
A41: =ENG!B61 -> 0 | F41: =ENG!I61 -> 00:00:00 | G41: =ENG!J61 -> 00:00:00
A42: =ENG!B62 -> 0 | F42: =ENG!I62 -> 00:00:00 | G42: =ENG!J62 -> 00:00:00
A43: =ENG!B63 -> 0 | F43: =ENG!I63 -> 00:00:00 | G43: =ENG!J63 -> 00:00:00
A44: =ENG!B64 -> 0 | F44: =ENG!I64 -> 00:00:00 | G44: =ENG!J64 -> 00:00:00
A45: =ENG!B65 -> 0 | F45: =ENG!I65 -> 00:00:00 | G45: =ENG!J65 -> 00:00:00
A46: =ENG!B66 -> 0 | F46: =ENG!I66 -> 00:00:00 | G46: =ENG!J66 -> 00:00:00
A47: =ENG!B67 -> 0 | F47: =ENG!I67 -> 00:00:00 | G47: =ENG!J67 -> 00:00:00
A48: =ENG!B68 -> 0 | F48: =ENG!I68 -> 00:00:00 | G48: =ENG!J68 -> 00:00:00
A50: Kvittering for nøgler
A51: Låner | B51: Dato: | C51: Underskrift:
A52: Udleveret af | B52: Dato: | C52: Underskrift:
A53: Modtaget af | B53: Dato: | C53: Underskrift:
A55: Andre booking:
A56: Lab: | B56: Båd: | C56: Kontor: | F56: Hytte
A57: Laboratorie videresendes til Mie Winding / Thomas Juul Pedersen
A58: Bådbooking: Booking
A59: Kontor videresendes til ?
A60: Hyttebooking videsendes til Maia eller Katrine Raundrup

Sheet Fakturering (hidden)
A1: Student | L1: Projekt nr: | M1: =ENG!H9 -> 0 | N1: =ENG!F9 -> 0
A2: vakantbolig: | C2: =B2 -> 0
A3: Logi | C3: Bolig | D3: Nr. | E3: Pris | F3: Ankomst dato | H3: Afrejse dato | I3: Antal dag | K3: Rengøring | L3: Oprind.beløb | M3: Max | N3: pris i alt (inkl.reng)
A4: ='Vær del.'!A39:B39 -> 0 | C4: ='Vær del.'!D39 -> 0 | D4: ='Vær del.'!E39 -> 0 | E4: =IF(C4="FV",400,0)+IF(C4="FL2",500,0)+IF(C4="FL3",650,0)+IF(C4="FL4",800,0)+IF(C4="BIO",400,0)+IF(C4="NBFL",500,0) -> 0 | F4: ='Vær del.'!F39 -> 00:00:00 | H4: ='Vær del.'!G39 -> 00:00:00 | I4: =H4-F4 -> 0 | K4: =IF(C4="NBFL",500,0+IF(C4="FV",300,0+IF(C4="FL2",1500,0+IF(C4="FL3",1500,0+IF(C4="FL4",1500,0+IF(C4="BIO",400,0)))))) -> 0 | L4: =E4*I4 -> 0 | M4: =VLOOKUP(Fakturering!I4,'opslag slet ikke'!$A$2:$S$361,IF(Fakturering!C4="FV","4",IF(Fakturering!C4="FL2","7",IF(Fakturering!C4="FL3","10",IF(Fakturering!C4="FL4","13",IF(Fakturering!C4="NBFL","16",IF(Fakturering!C4="BIO","19","0")))))),FALSE) ->  | N4: =M4+K4 ->  | O4: Kredit: | P4: 2110 | Q4: / | R4: 84 | S4: - | T4: 0 | U4: =IF(C4="FV",8,0+IF(C4="FL2",8,0+IF(C4="FL3",8,0+IF(C4="FL4",8,0+IF(C4="NBFL",8,0+IF(C4="BIO",6,0+HVIS)))))) ->  | V4: => | W4: =A4 -> 0 | Y4: =I4 -> 0 | Z4: nætter
A5: ='Vær del.'!A40:B40 -> 0 | C5: ='Vær del.'!D40 -> 0 | D5: ='Vær del.'!E40 -> 0 | E5: =IF(C5="FV",400,0)+IF(C5="FL2",500,0)+IF(C5="FL3",650,0)+IF(C5="FL4",800,0)+IF(C5="BIO",400,0)+IF(C5="NBFL",500,0) -> 0 | F5: ='Vær del.'!F40 -> 00:00:00 | H5: ='Vær del.'!G40 -> 00:00:00 | I5: 0 | K5: 0 | L5: 0 | M5: =VLOOKUP(Fakturering!I5,'opslag slet ikke'!$A$2:$S$361,IF(Fakturering!C5="FV","4",IF(Fakturering!C5="FL2","7",IF(Fakturering!C5="FL3","10",IF(Fakturering!C5="FL4","13",IF(Fakturering!C5="NBFL","16",IF(Fakturering!C5="BIO","19","0")))))),FALSE) ->  | O5: Kredit: | P5: 2110 | Q5: / | R5: 84 | S5: - | T5: 0 | U5: =IF(C5="FV",8,0+IF(C5="FL2",8,0+IF(C5="FL3",8,0+IF(C5="FL4",8,0+IF(C5="NBFL",8,0+IF(C5="BIO",6,0)))))) -> 0 | V5: => | W5: 0 | Y5: 0 | Z5: nætter
A6: ='Vær del.'!A41:B41 -> 0 | C6: ='Vær del.'!D41 -> 0 | D6: ='Vær del.'!E41 -> 0 | E6: 0 | F6: ='Vær del.'!F41 -> 00:00:00 | H6: ='Vær del.'!G41 -> 00:00:00 | I6: 0 | K6: 0 | L6: 0 | M6: =VLOOKUP(Fakturering!I6,'opslag slet ikke'!$A$2:$S$361,IF(Fakturering!C6="FV","4",IF(Fakturering!C6="FL2","7",IF(Fakturering!C6="FL3","10",IF(Fakturering!C6="FL4","13",IF(Fakturering!C6="NBFL","16",IF(Fakturering!C6="BIO","19","0")))))),FALSE) ->  | O6: Kredit: | P6: 2110 | Q6: / | R6: 84 | S6: - | T6: 0 | U6: 0 | V6: => | W6: 0 | Y6: 0 | Z6: nætter
A7: ='Vær del.'!A42:B42 -> 0 | C7: ='Vær del.'!D42 -> 0 | D7: ='Vær del.'!E42 -> 0 | E7: 0 | F7: ='Vær del.'!F42 -> 00:00:00 | H7: ='Vær del.'!G42 -> 00:00:00 | I7: 0 | K7: 0 | L7: 0 | M7: =VLOOKUP(Fakturering!I7,'opslag slet ikke'!$A$2:$S$361,IF(Fakturering!C7="FV","4",IF(Fakturering!C7="FL2","7",IF(Fakturering!C7="FL3","10",IF(Fakturering!C7="FL4","13",IF(Fakturering!C7="NBFL","16",IF(Fakturering!C7="BIO","19","0")))))),FALSE) ->  | O7: Kredit: | P7: 2110 | Q7: / | R7: 84 | S7: - | T7: 0 | U7: 0 | V7: => | W7: 0 | Y7: 0 | Z7: nætter
A8: ='Vær del.'!A43:B43 -> 0 | C8: ='Vær del.'!D43 -> 0 | D8: ='Vær del.'!E43 -> 0 | E8: 0 | F8: ='Vær del.'!F43 -> 00:00:00 | H8: ='Vær del.'!G43 -> 00:00:00 | I8: 0 | K8: 0 | L8: 0 | M8: =VLOOKUP(Fakturering!I8,'opslag slet ikke'!$A$2:$S$361,IF(Fakturering!C8="FV","4",IF(Fakturering!C8="FL2","7",IF(Fakturering!C8="FL3","10",IF(Fakturering!C8="FL4","13",IF(Fakturering!C8="NBFL","16",IF(Fakturering!C8="BIO","19","0")))))),FALSE) ->  | O8: Kredit: | P8: 2110 | Q8: / | R8: 84 | S8: - | T8: 0 | U8: 0 | V8: => | W8: 0 | Y8: 0 | Z8: nætter
A9: ='Vær del.'!A44:B44 -> 0 | C9: ='Vær del.'!D44 -> 0 | D9: ='Vær del.'!E44 -> 0 | E9: 0 | F9: ='Vær del.'!F44 -> 00:00:00 | H9: ='Vær del.'!G44 -> 00:00:00 | I9: 0 | K9: 0 | L9: 0 | M9: =VLOOKUP(Fakturering!I9,'opslag slet ikke'!$A$2:$S$361,IF(Fakturering!C9="FV","4",IF(Fakturering!C9="FL2","7",IF(Fakturering!C9="FL3","10",IF(Fakturering!C9="FL4","13",IF(Fakturering!C9="NBFL","16",IF(Fakturering!C9="BIO","19","0")))))),FALSE) ->  | O9: Kredit: | P9: 2110 | Q9: / | R9: 84 | S9: - | T9: 0 | U9: 0 | V9: => | W9: 0 | Y9: 0 | Z9: nætter
A10: ='Vær del.'!A45:B45 -> 0 | C10: ='Vær del.'!D45 -> 0 | D10: ='Vær del.'!E45 -> 0 | E10: 0 | F10: ='Vær del.'!F45 -> 00:00:00 | H10: ='Vær del.'!G45 -> 00:00:00 | I10: 0 | K10: 0 | L10: 0 | M10: =VLOOKUP(Fakturering!I10,'opslag slet ikke'!$A$2:$S$361,IF(Fakturering!C10="FV","4",IF(Fakturering!C10="FL2","7",IF(Fakturering!C10="FL3","10",IF(Fakturering!C10="FL4","13",IF(Fakturering!C10="NBFL","16",IF(Fakturering!C10="BIO","19","0")))))),FALSE) ->  | O10: Kredit: | P10: 2110 | Q10: / | R10: 84 | S10: - | T10: 0 | U10: 0 | V10: => | W10: 0 | Y10: 0 | Z10: nætter
A11: ='Vær del.'!A46:B46 -> 0 | C11: ='Vær del.'!D46 -> 0 | D11: ='Vær del.'!E46 -> 0 | E11: 0 | F11: ='Vær del.'!F46 -> 00:00:00 | H11: ='Vær del.'!G46 -> 00:00:00 | I11: 0 | K11: 0 | L11: 0 | M11: =VLOOKUP(Fakturering!I11,'opslag slet ikke'!$A$2:$S$361,IF(Fakturering!C11="FV","4",IF(Fakturering!C11="FL2","7",IF(Fakturering!C11="FL3","10",IF(Fakturering!C11="FL4","13",IF(Fakturering!C11="NBFL","16",IF(Fakturering!C11="BIO","19","0")))))),FALSE) ->  | O11: Kredit: | P11: 2110 | Q11: / | R11: 84 | S11: - | T11: 0 | U11: 0 | V11: => | W11: 0 | Y11: 0 | Z11: nætter
A12: ='Vær del.'!A47:B47 -> 0 | C12: ='Vær del.'!D47 -> 0 | D12: ='Vær del.'!E47 -> 0 | E12: 0 | F12: ='Vær del.'!F47 -> 00:00:00 | H12: ='Vær del.'!G47 -> 00:00:00 | I12: 0 | K12: 0 | L12: 0 | M12: =VLOOKUP(Fakturering!I12,'opslag slet ikke'!$A$2:$S$361,IF(Fakturering!C12="FV","4",IF(Fakturering!C12="FL2","7",IF(Fakturering!C12="FL3","10",IF(Fakturering!C12="FL4","13",IF(Fakturering!C12="NBFL","16",IF(Fakturering!C12="BIO","19","0")))))),FALSE) ->  | O12: Kredit: | P12: 2110 | Q12: / | R12: 84 | S12: - | T12: 0 | U12: 0 | V12: => | W12: 0 | Y12: 0 | Z12: nætter
A13: ='Vær del.'!A48:B48 -> 0 | C13: ='Vær del.'!D48 -> 0 | D13: ='Vær del.'!E48 -> 0 | E13: 0 | F13: ='Vær del.'!F48 -> 00:00:00 | H13: ='Vær del.'!G48 -> 00:00:00 | I13: 0 | K13: 0 | L13: 0 | M13: =VLOOKUP(Fakturering!I13,'opslag slet ikke'!$A$2:$S$361,IF(Fakturering!C13="FV","4",IF(Fakturering!C13="FL2","7",IF(Fakturering!C13="FL3","10",IF(Fakturering!C13="FL4","13",IF(Fakturering!C13="NBFL","16",IF(Fakturering!C13="BIO","19","0")))))),FALSE) ->  | O13: Kredit: | P13: 2110 | Q13: / | R13: 84 | S13: - | T13: 0 | U13: 0 | V13: => | W13: 0 | Y13: 0 | Z13: nætter
A14: Kantine | C14: Lunch | F14: Fra den | H14: Til og med | I14: Helligdag | J14: antal middag
A15: =ENG!B74 -> 0 | C15: =NETWORKDAYS(ENG!E74,ENG!F74,'Dato slet ikke'!A23+'Dato slet ikke'!A47+'Dato slet ikke'!A78) -> 0 | E15: =IF(C15>0,50,0) -> 0 | F15: =ENG!E74 -> 00:00:00 | H15: =ENG!F74 -> 00:00:00 | I15: 0 | J15: =C15-I15 -> 0 | N15: =J15*E15 -> 0 | O15: Kredit: | P15: 2110 | Q15: / | R15: 81 | S15: - | T15: 0 | U15: 8 | V15: => | W15: =A15 -> 0 | Y15: Kantine x | Z15: =J15 -> 0
A16: =ENG!B75 -> 0 | C16: =NETWORKDAYS(ENG!E75,ENG!F75,'Dato slet ikke'!A24+'Dato slet ikke'!A48+'Dato slet ikke'!A79) -> 0 | E16: 0 | F16: =ENG!E75 -> 00:00:00 | H16: =ENG!F75 -> 00:00:00 | I16: 1 | J16: -1 | N16: 0 | O16: Kredit: | P16: 2110 | Q16: / | R16: 81 | S16: - | T16: 0 | U16: 8 | V16: => | W16: 0 | Y16: Kantine x | Z16: =J16 -> -1
A17: =ENG!B76 -> 0 | C17: =NETWORKDAYS(ENG!E76,ENG!F76,'Dato slet ikke'!A25+'Dato slet ikke'!A49+'Dato slet ikke'!A80) -> 0 | E17: 0 | F17: =ENG!E76 -> 00:00:00 | H17: =ENG!F76 -> 00:00:00 | I17: 0 | J17: 0 | N17: 0 | O17: Kredit: | P17: 2110 | Q17: / | R17: 81 | S17: - | T17: 0 | U17: 8 | V17: => | W17: 0 | Y17: Kantine x | Z17: =J6 -> 0
A18: =ENG!B77 -> 0 | C18: =NETWORKDAYS(ENG!E77,ENG!F77,'Dato slet ikke'!A26+'Dato slet ikke'!A50+'Dato slet ikke'!A81) -> 0 | E18: 0 | F18: =ENG!E77 -> 00:00:00 | H18: =ENG!F77 -> 00:00:00 | I18: 0 | J18: 0 | N18: 0 | O18: Kredit: | P18: 2110 | Q18: / | R18: 81 | S18: - | T18: 0 | U18: 8 | V18: => | W18: 0 | Y18: Kantine x | Z18: 0
A19: =ENG!B78 -> 0 | C19: =NETWORKDAYS(ENG!E78,ENG!F78,'Dato slet ikke'!A27+'Dato slet ikke'!A51+'Dato slet ikke'!A82) -> 0 | E19: 0 | F19: =ENG!E78 -> 00:00:00 | H19: =ENG!F78 -> 00:00:00 | I19: 0 | J19: 0 | N19: 0 | O19: Kredit: | P19: 2110 | Q19: / | R19: 81 | S19: - | T19: 0 | U19: 8 | V19: => | W19: 0 | Y19: Kantine x | Z19: 0
A20: =ENG!B79 -> 0 | C20: =NETWORKDAYS(ENG!E79,ENG!F79,'Dato slet ikke'!A28+'Dato slet ikke'!A52+'Dato slet ikke'!A83) -> 0 | E20: 0 | F20: =ENG!E79 -> 00:00:00 | H20: =ENG!F79 -> 00:00:00 | I20: 0 | J20: 0 | N20: 0 | O20: Kredit: | P20: 2110 | Q20: / | R20: 81 | S20: - | T20: 0 | U20: 8 | V20: => | W20: 0 | Y20: Kantine x | Z20: 0
A21: =ENG!B80 -> 0 | C21: =NETWORKDAYS(ENG!E80,ENG!F80,'Dato slet ikke'!A29+'Dato slet ikke'!A53+'Dato slet ikke'!A84) -> 0 | E21: 0 | F21: =ENG!E80 -> 00:00:00 | H21: =ENG!F80 -> 00:00:00 | I21: 0 | J21: 0 | N21: 0 | O21: Kredit: | P21: 2110 | Q21: / | R21: 81 | S21: - | T21: 0 | U21: 8 | V21: => | W21: 0 | Y21: Kantine x | Z21: 0
A22: =ENG!B81 -> 0 | C22: =NETWORKDAYS(ENG!E81,ENG!F81,'Dato slet ikke'!A30+'Dato slet ikke'!A54+'Dato slet ikke'!A85) -> 0 | E22: 0 | F22: =ENG!E81 -> 00:00:00 | H22: =ENG!F81 -> 00:00:00 | I22: 0 | J22: 0 | N22: 0 | O22: Kredit: | P22: 2110 | Q22: / | R22: 81 | S22: - | T22: 0 | U22: 8 | V22: => | W22: 0 | Y22: Kantine x | Z22: 0
A23: =ENG!B82 -> 0 | C23: =NETWORKDAYS(ENG!E82,ENG!F82,'Dato slet ikke'!A31+'Dato slet ikke'!A55+'Dato slet ikke'!A86) -> 0 | E23: 0 | F23: =ENG!E82 -> 00:00:00 | H23: =ENG!F82 -> 00:00:00 | I23: 0 | J23: 0 | N23: 0 | O23: Kredit: | P23: 2110 | Q23: / | R23: 81 | S23: - | T23: 0 | U23: 8 | V23: => | W23: 0 | Y23: Kantine x | Z23: 0
A24: =ENG!B83 -> 0 | C24: =NETWORKDAYS(ENG!E83,ENG!F83,'Dato slet ikke'!A32+'Dato slet ikke'!A56+'Dato slet ikke'!A87) -> 0 | E24: 0 | F24: =ENG!E83 -> 00:00:00 | H24: =ENG!F83 -> 00:00:00 | I24: 0 | J24: 0 | N24: 0 | O24: Kredit: | P24: 2110 | Q24: / | R24: 81 | S24: - | T24: 0 | U24: 8 | V24: => | W24: 0 | Y24: Kantine x | Z24: 0
A25: Ekstra Service | C25: antal
A26: Ekstra seng | C26: 0 | E26: 200 | N26: =E26*C26 -> 0 | O26: Kredit: | P26: =P4 -> 2110 | Q26: / | R26: =R4 -> 84 | S26: - | T26: 0 | V26: => | Y26: =A26 -> Ekstra seng
A27: Ekstra rengøring | C27: 0 | E27: 300 | N27: =E27*C27 -> 0 | O27: Kredit: | P27: =P5 -> 2110 | Q27: / | R27: 84 | S27: - | T27: 0 | U27: 0 | V27: => | Y27: =A27 -> Ekstra rengøring
N28: =SUMIF(N4:N13,"<>"&"#I/T")+(N15+N16+N17+N18+N19+N20+N21+N22+N23+N24+N26+N27) -> 0
I29: Phd. studerende 50% - rabat på overnatninger | M29: - 50% | N29: =IF(B1="x",N28*50%,0) -> 0
N30: =N28-N29 -> 0 | O30: Debit: | P30: =IF(M1="Intern",1290,0+IF(M1="Ekstern",9118,0+IF(M1="Ingen",9118,0+IF(M1="Vælg",9118,0)))) -> 0 | Q30: / | R30: =IF(M1="Ekstern",22,0+IF(M1="Intern", 79,0+IF(M1="ingen","10",0))) -> 0 | S30: - | T30: =IF(M1="ingen",0,0) -> 0 | U30: =IF(M1="Ingen",1,0+IF(M1="Intern",N1,0+IF(M1="Ekstern",N1,0+IF(M1="Vælg",1,0)))) -> 0 | V30: =V27 -> => | W30: =A4 -> 0 | Y30: Logi Nuuk
O31: Debit: | P31: 1262 | Q31: / | R31: 81 | S31: - | U31: =N1 -> 0 | V31: =V10 -> => | W31: =A4 -> 0 | Y31: Logi Nuuk
H32: =IF(H31="Omar bin Laden, Afganistan","Han betaler sgu nok ikke; udfyld felt N6 med debitors navn"," ") -> 

Sheet Faktura (hidden)
B2: =ENG!B18 -> 0
B3: =ENG!B19 -> 0
B4: =ENG!B20 -> 0
B5: =ENG!B21 -> 0 | C5: =ENG!B22 -> 0 | H5: Invoice no.
B6: =ENG!B23 -> 0 | H6: Date:
B7: =ENG!B24 -> 0
B8: =ENG!B25 -> 0
B9: =ENG!B26 -> 0
B13: Acommodation on GINR, Booking nr: | F13: ='Vær del.'!A5 -> 0
B16: days | F16: from date | G16: to date | H16: DDK | J16: DDK
B17: =Fakturering!I4 -> 0 | C17: =Fakturering!C4 -> 0 | D17: =Fakturering!A4 -> 0 | F17: =ENG!I59 -> 00:00:00 | G17: =ENG!J59 -> 00:00:00 | H17: =Fakturering!E4 -> 0 | J17: =Fakturering!M4 -> 
B18: =Fakturering!I5 -> 0 | C18: =Fakturering!C5 -> 0 | D18: =Fakturering!A5 -> 0 | F18: =ENG!I60 -> 00:00:00 | G18: =ENG!J60 -> 00:00:00 | H18: =Fakturering!E5 -> 0 | J18: =Fakturering!M5 -> 
B19: =Fakturering!I6 -> 0 | C19: =Fakturering!C6 -> 0 | D19: =Fakturering!A6 -> 0 | F19: =ENG!I61 -> 00:00:00 | G19: =ENG!J61 -> 00:00:00 | H19: =Fakturering!E6 -> 0 | J19: =Fakturering!M6 -> 
B20: =Fakturering!I7 -> 0 | C20: =Fakturering!C7 -> 0 | D20: =Fakturering!A7 -> 0 | F20: =ENG!I62 -> 00:00:00 | G20: =ENG!J62 -> 00:00:00 | H20: =Fakturering!E7 -> 0 | J20: =Fakturering!M7 -> 
B21: =Fakturering!I8 -> 0 | C21: =Fakturering!C8 -> 0 | D21: =Fakturering!A8 -> 0 | F21: =ENG!I63 -> 00:00:00 | G21: =ENG!J63 -> 00:00:00 | H21: =Fakturering!E8 -> 0 | J21: =Fakturering!M8 -> 
B22: =Fakturering!I9 -> 0 | C22: =Fakturering!C9 -> 0 | D22: =Fakturering!A9 -> 0 | F22: =ENG!I64 -> 00:00:00 | G22: =ENG!J64 -> 00:00:00 | H22: =Fakturering!E9 -> 0 | J22: =Fakturering!M9 -> 
B23: =Fakturering!I10 -> 0 | C23: =Fakturering!C10 -> 0 | D23: =Fakturering!A10 -> 0 | F23: =ENG!I65 -> 00:00:00 | G23: =ENG!J65 -> 00:00:00 | H23: =Fakturering!E10 -> 0 | J23: =Fakturering!M10 -> 
B24: =Fakturering!I11 -> 0 | C24: =Fakturering!C11 -> 0 | D24: =Fakturering!A11 -> 0 | F24: =ENG!I66 -> 00:00:00 | G24: =ENG!J66 -> 00:00:00 | H24: =Fakturering!E11 -> 0 | J24: =Fakturering!M11 -> 
B25: =Fakturering!I12 -> 0 | C25: =Fakturering!C12 -> 0 | D25: =Fakturering!A12 -> 0 | F25: =ENG!I67 -> 00:00:00 | G25: =ENG!J67 -> 00:00:00 | H25: =Fakturering!E12 -> 0 | J25: =Fakturering!M12 -> 
B26: =Fakturering!I13 -> 0 | C26: =Fakturering!C13 -> 0 | D26: =Fakturering!A13 -> 0 | F26: =ENG!I68 -> 00:00:00 | G26: =ENG!J68 -> 00:00:00 | H26: =Fakturering!E13 -> 0 | J26: =Fakturering!M13 -> 
B27: Cleaning
B28: 1 | C28: Cleaning fee | H28: =Fakturering!K4 -> 0 | J28: =H28 -> 0
B29: 1 | C29: Cleaning fee | H29: =Fakturering!K5 -> 0 | J29: =H29 -> 0
B30: 1 | C30: Cleaning fee | H30: =Fakturering!K6 -> 0 | J30: 0
B31: 1 | C31: Cleaning fee | H31: =Fakturering!K7 -> 0 | J31: 0
B32: 1 | C32: Cleaning fee | H32: =Fakturering!K8 -> 0 | J32: 0
B33: 1 | C33: Cleaning fee | H33: =Fakturering!K9 -> 0 | J33: 0
B34: 1 | C34: Cleaning fee | H34: =Fakturering!K10 -> 0 | J34: 0
B35: 1 | C35: Cleaning fee | H35: =Fakturering!K11 -> 0 | J35: 0
B36: 1 | C36: Cleaning fee | H36: =Fakturering!K12 -> 0 | J36: 0
B37: 1 | C37: Cleaning fee | H37: =Fakturering!K13 -> 0 | J37: 0
B38: =Fakturering!C14 -> Lunch | F38: from date | G38: to date
B39: =Fakturering!J15 -> 0 | C39: =ENG!B74 -> 0 | F39: =ENG!E74 -> 00:00:00 | G39: =ENG!F74 -> 00:00:00 | H39: =Fakturering!E15 -> 0 | J39: =H39*B39 -> 0
B40: =Fakturering!J16 -> -1 | C40: =ENG!B75 -> 0 | F40: =ENG!E75 -> 00:00:00 | G40: =ENG!F75 -> 00:00:00 | H40: =Fakturering!E16 -> 0 | J40: =H40*B40 -> 0
B41: =Fakturering!J17 -> 0 | C41: =ENG!B76 -> 0 | F41: =ENG!E76 -> 00:00:00 | G41: =ENG!F76 -> 00:00:00 | H41: =Fakturering!E17 -> 0 | J41: 0
B42: =Fakturering!J18 -> 0 | C42: =ENG!B77 -> 0 | F42: =ENG!E77 -> 00:00:00 | G42: =ENG!F77 -> 00:00:00 | H42: =Fakturering!E18 -> 0 | J42: 0
B43: =Fakturering!J19 -> 0 | C43: =ENG!B78 -> 0 | F43: =ENG!E78 -> 00:00:00 | G43: =ENG!F78 -> 00:00:00 | H43: =Fakturering!E19 -> 0 | J43: 0
B44: =Fakturering!J20 -> 0 | C44: =ENG!B79 -> 0 | F44: =ENG!E79 -> 00:00:00 | G44: =ENG!F79 -> 00:00:00 | H44: =Fakturering!E20 -> 0 | J44: 0
B45: =Fakturering!J21 -> 0 | C45: =ENG!B80 -> 0 | F45: =ENG!E80 -> 00:00:00 | G45: =ENG!F80 -> 00:00:00 | H45: =Fakturering!E21 -> 0 | J45: 0
B46: =Fakturering!J22 -> 0 | C46: =ENG!B81 -> 0 | F46: =ENG!E81 -> 00:00:00 | G46: =ENG!F81 -> 00:00:00 | H46: =Fakturering!E22 -> 0 | J46: 0
B47: =Fakturering!J23 -> 0 | C47: =ENG!B82 -> 0 | F47: =ENG!E82 -> 00:00:00 | G47: =ENG!F82 -> 00:00:00 | H47: =Fakturering!E23 -> 0 | J47: 0
B48: =Fakturering!J24 -> 0 | C48: =ENG!B83 -> 0 | F48: =ENG!E83 -> 00:00:00 | G48: =ENG!F83 -> 00:00:00 | H48: =Fakturering!E24 -> 0 | J48: 0
B49: Extra Service
B50: =Fakturering!C26 -> 0 | C50: Extra bed | H50: =Fakturering!E26 -> 200 | J50: =H50*B50 -> 0
B51: =Fakturering!C27 -> 0 | C51: Extra cleaning | H51: =Fakturering!E27 -> 300 | J51: =H51*B51 -> 0
B52: Phd. Studerende rabat | J52: =-Fakturering!N29 -> 0
J53: Total
B54: Terms of payment: Net cash | H54: =J16 -> DDK | J54: =SUMIF(J17:J26,"<>"&"#I/T")+(J39+J40+J41+J42+J43+J44+J45+J46+J47+J48)+(J28+J29+J30+J31+J32+J33+J34+J35+J36+J37)+(J50+J51)+(J52) -> 0
B57: Customers copy
B58: Copy for accounting
B59: Copy for accounting of payment

Sheet Dato slet ikke (hidden)
A1: 2018-04-05
A2: 2018-04-06
A3: 2018-04-07
A4: 2018-04-08
A5: 2018-04-09
A6: 2018-04-10
A7: 2018-04-11
A8: 2018-04-12
A9: 2018-04-13
A10: 2018-04-14
A11: 2018-04-15
A12: 2018-04-16
A13: 2018-04-17
A14: 2018-04-18
A15: 2018-04-19
A16: 2018-04-20
A17: 2018-04-21
A18: 2018-04-22
A19: 2018-04-23
A20: 2018-04-24
A21: 2018-04-25
A22: 2018-04-26
A23: 2018-04-27 | B23: helligedag
A24: 2018-04-28
A25: 2018-04-29
A26: 2018-04-30
A27: 2018-05-01
A28: 2018-05-02
A29: 2018-05-03
A30: 2018-05-04
A31: 2018-05-05
A32: 2018-05-06
A33: 2018-05-07
A34: 2018-05-08
A35: 2018-05-09
A36: 2018-05-10
A37: 2018-05-11
A38: 2018-05-12
A39: 2018-05-13
A40: 2018-05-14
A41: 2018-05-15
A42: 2018-05-16
A43: 2018-05-17
A44: 2018-05-18
A45: 2018-05-19
A46: 2018-05-20
A47: 2018-05-21 | B47: helligedag
A48: 2018-05-22
A49: 2018-05-23
A50: 2018-05-24
A51: 2018-05-25
A52: 2018-05-26
A53: 2018-05-27
A54: 2018-05-28
A55: 2018-05-29
A56: 2018-05-30
A57: 2018-05-31
A58: 2018-06-01
A59: 2018-06-02
A60: 2018-06-03
A61: 2018-06-04
A62: 2018-06-05
A63: 2018-06-06
A64: 2018-06-07
A65: 2018-06-08
A66: 2018-06-09
A67: 2018-06-10
A68: 2018-06-11
A69: 2018-06-12
A70: 2018-06-13
A71: 2018-06-14
A72: 2018-06-15
A73: 2018-06-16
A74: 2018-06-17
A75: 2018-06-18
A76: 2018-06-19
A77: 2018-06-20
A78: 2018-06-21 | B78: nationaldag
A79: 2018-06-22
A80: 2018-06-23
A81: 2018-06-24
A82: 2018-06-25
A83: 2018-06-26
A84: 2018-06-27
A85: 2018-06-28
A86: 2018-06-29
A87: 2018-06-30
A88: 2018-07-01
A89: 2018-07-02
A90: 2018-07-03
A91: 2018-07-04
A92: 2018-07-05
A93: 2018-07-06
A94: 2018-07-07
A95: 2018-07-08
A96: 2018-07-09
A97: 2018-07-10
A98: 2018-07-11
A99: 2018-07-12
A100: 2018-07-13
A101: 2018-07-14
A102: 2018-07-15
A103: 2018-07-16
A104: 2018-07-17
A105: 2018-07-18
A106: 2018-07-19
A107: 2018-07-20
A108: 2018-07-21
A109: 2018-07-22
A110: 2018-07-23
A111: 2018-07-24
A112: 2018-07-25
A113: 2018-07-26
A114: 2018-07-27
A115: 2018-07-28
A116: 2018-07-29
A117: 2018-07-30
A118: 2018-07-31
A119: 2018-08-01
A120: 2018-08-02
A121: 2018-08-03
A122: 2018-08-04
A123: 2018-08-05
A124: 2018-08-06
A125: 2018-08-07
A126: 2018-08-08
A127: 2018-08-09
A128: 2018-08-10
A129: 2018-08-11
A130: 2018-08-12
A131: 2018-08-13
A132: 2018-08-14
A133: 2018-08-15
A134: 2018-08-16
A135: 2018-08-17
A136: 2018-08-18
A137: 2018-08-19
A138: 2018-08-20
A139: 2018-08-21
A140: 2018-08-22
A141: 2018-08-23
A142: 2018-08-24
A143: 2018-08-25
A144: 2018-08-26
A145: 2018-08-27
A146: 2018-08-28
A147: 2018-08-29
A148: 2018-08-30
A149: 2018-08-31
A150: 2018-09-01
A151: 2018-09-02
A152: 2018-09-03
A153: 2018-09-04
A154: 2018-09-05
A155: 2018-09-06
A156: 2018-09-07
A157: 2018-09-08
A158: 2018-09-09
A159: 2018-09-10
A160: 2018-09-11
A161: 2018-09-12
A162: 2018-09-13
A163: 2018-09-14
A164: 2018-09-15
A165: 2018-09-16
A166: 2018-09-17
A167: 2018-09-18
A168: 2018-09-19
A169: 2018-09-20
A170: 2018-09-21
A171: 2018-09-22
A172: 2018-09-23
A173: 2018-09-24
A174: 2018-09-25
A175: 2018-09-26
A176: 2018-09-27
A177: 2018-09-28
A178: 2018-09-29
A179: 2018-09-30
A180: 2018-10-01
A181: 2018-10-02
A182: 2018-10-03
A183: 2018-10-04
A184: 2018-10-05
A185: 2018-10-06
A186: 2018-10-07
A187: 2018-10-08
A188: 2018-10-09
A189: 2018-10-10
A190: 2018-10-11
A191: 2018-10-12
A192: 2018-10-13
A193: 2018-10-14
A194: 2018-10-15
A195: 2018-10-16
A196: 2018-10-17
A197: 2018-10-18
A198: 2018-10-19
A199: 2018-10-20
A200: 2018-10-21
... 437 more rows

Sheet opslag slet ikke (hidden)
A1: Dag | B1: FV | C1: opr.pris | D1: Max pris | E1: FL2 | F1: opr.pris | G1: Max pris | H1: FL3 | I1: opr.pris | J1: Max pris | K1: FL4 | L1: opr.pris | M1: Max pris | N1: NBFL | O1: opr.pris | P1: Max pris | Q1: BIO | R1: opr.pris | S1: Max pris | V1: Type | W1: dag | X1: Maxpris | AC1: =NOW() -> 2018-08-07T10:14:23.070
A2: 1 | B2: 400 | C2: =B2*A2 -> 400 | D2: =C2 -> 400 | E2: 500 | F2: =E2*A2 -> 500 | G2: =F2 -> 500 | H2: 650 | I2: 650 | J2: =I2 -> 650 | K2: 800 | L2: =K2*A2 -> 800 | M2: =L2 -> 800 | N2: 500 | O2: =N2*A2 -> 500 | P2: =O2 -> 500 | Q2: 500 | R2: =Q2*A2 -> 500 | S2: =R2 -> 500 | AC2: =AC1+1 -> 2018-08-08T10:14:23.070
A3: 2 | B3: =B2 -> 400 | C3: =B3*A3 -> 800 | D3: 800 | E3: =E2 -> 500 | F3: 1000 | G3: 1000 | H3: =H2 -> 650 | I3: =H3*A3 -> 1300 | J3: 1300 | K3: =K2 -> 800 | L3: =K3*A3 -> 1600 | M3: 1600 | N3: =N2 -> 500 | O3: 1000 | P3: 1000 | Q3: =Q2 -> 500 | R3: 1000 | S3: 1000 | V3: FV | W3: 10 | X3: =VLOOKUP(W3,A2:S361,IF(V3="FV","4",IF(V3="FL2","7",IF(V3="FL3","10",IF(V3="FL4","13",IF(V3="NBFL","16",IF(V3="BIO","19","0")))))),FALSE) -> 4000 | AC3: =AC2+1 -> 2018-08-09T10:14:23.070
A4: 3 | B4: =B3 -> 400 | C4: 1200 | D4: 1200 | E4: =E3 -> 500 | F4: 1500 | G4: 1500 | H4: =H3 -> 650 | I4: =H4*A4 -> 1950 | J4: 1950 | K4: =K3 -> 800 | L4: =K4*A4 -> 2400 | M4: 2400 | N4: =N3 -> 500 | O4: 1500 | P4: 1500 | Q4: =Q3 -> 500 | R4: 1500 | S4: 1500 | AC4: 2018-08-10T10:14:23.070
A5: 4 | B5: 400 | C5: 1600 | D5: 1600 | E5: 500 | F5: 2000 | G5: 2000 | H5: 650 | I5: 2600 | J5: 2600 | K5: 800 | L5: 3200 | M5: 3200 | N5: 500 | O5: 2000 | P5: 2000 | Q5: 500 | R5: 2000 | S5: 2000 | AC5: 2018-08-11T10:14:23.070
A6: 5 | B6: 400 | C6: 2000 | D6: 2000 | E6: 500 | F6: 2500 | G6: 2500 | H6: 650 | I6: 3250 | J6: 3250 | K6: 800 | L6: 4000 | M6: 4000 | N6: 500 | O6: 2500 | P6: 2500 | Q6: 500 | R6: 2500 | S6: 2500 | AC6: 2018-08-12T10:14:23.070
A7: 6 | B7: 400 | C7: 2400 | D7: 2400 | E7: 500 | F7: 3000 | G7: 3000 | H7: 650 | I7: 3900 | J7: 3900 | K7: 800 | L7: 4800 | M7: 4800 | N7: 500 | O7: 3000 | P7: 3000 | Q7: 500 | R7: 3000 | S7: 3000 | AC7: 2018-08-13T10:14:23.070
A8: 7 | B8: 400 | C8: 2800 | D8: 2800 | E8: 500 | F8: 3500 | G8: 3500 | H8: 650 | I8: 4550 | J8: 4550 | K8: 800 | L8: 5600 | M8: 5600 | N8: 500 | O8: 3500 | P8: 3500 | Q8: 500 | R8: 3500 | S8: 3500 | AC8: 2018-08-14T10:14:23.070
A9: 8 | B9: 400 | C9: 3200 | D9: 3200 | E9: 500 | F9: 4000 | G9: 4000 | H9: 650 | I9: 5200 | J9: 5200 | K9: 800 | L9: 6400 | M9: 6400 | N9: 500 | O9: 4000 | P9: 4000 | Q9: 500 | R9: 4000 | S9: 4000 | AC9: 2018-08-15T10:14:23.070
A10: 9 | B10: 400 | C10: 3600 | D10: 3600 | E10: 500 | F10: 4500 | G10: 4500 | H10: 650 | I10: 5850 | J10: 5850 | K10: 800 | L10: 7200 | M10: 7200 | N10: 500 | O10: 4500 | P10: 4500 | Q10: 500 | R10: 4500 | S10: 4500 | AC10: 2018-08-16T10:14:23.070
A11: 10 | B11: 400 | C11: 4000 | D11: =B11*A11 -> 4000 | E11: 500 | F11: 5000 | G11: =E11*A11 -> 5000 | H11: 650 | I11: 6500 | J11: =H11*A11 -> 6500 | K11: 800 | L11: 8000 | M11: =K11*A11 -> 8000 | N11: 500 | O11: 5000 | P11: 5000 | Q11: 500 | R11: 5000 | S11: =Q11*A11 -> 5000 | AC11: 2018-08-17T10:14:23.070
A12: 11 | B12: 400 | C12: 4400 | D12: =D11 -> 4000 | E12: 500 | F12: 5500 | G12: =G11 -> 5000 | H12: 650 | I12: 7150 | J12: =J11 -> 6500 | K12: 800 | L12: 8800 | M12: =M11 -> 8000 | N12: 500 | O12: 5500 | P12: =P11 -> 5000 | Q12: 500 | R12: 5500 | S12: =S11 -> 5000 | AC12: 2018-08-18T10:14:23.070
A13: 12 | B13: 400 | C13: 4800 | D13: =D12 -> 4000 | E13: 500 | F13: 6000 | G13: =G12 -> 5000 | H13: 650 | I13: 7800 | J13: =J12 -> 6500 | K13: 800 | L13: 9600 | M13: =M12 -> 8000 | N13: 500 | O13: 6000 | P13: =P12 -> 5000 | Q13: 500 | R13: 6000 | S13: =S12 -> 5000 | AC13: 2018-08-19T10:14:23.070
A14: 13 | B14: 400 | C14: 5200 | D14: =D13 -> 4000 | E14: 500 | F14: 6500 | G14: =G13 -> 5000 | H14: 650 | I14: 8450 | J14: =J13 -> 6500 | K14: 800 | L14: 10400 | M14: =M13 -> 8000 | N14: 500 | O14: 6500 | P14: =P13 -> 5000 | Q14: 500 | R14: 6500 | S14: =S13 -> 5000 | AC14: 2018-08-20T10:14:23.070
A15: 14 | B15: 400 | C15: 5600 | D15: 4000 | E15: 500 | F15: 7000 | G15: 5000 | H15: 650 | I15: 9100 | J15: 6500 | K15: 800 | L15: 11200 | M15: 8000 | N15: 500 | O15: 7000 | P15: 5000 | Q15: 500 | R15: 7000 | S15: 5000 | AC15: 2018-08-21T10:14:23.070
A16: 15 | B16: 400 | C16: 6000 | D16: 4000 | E16: 500 | F16: 7500 | G16: 5000 | H16: 650 | I16: 9750 | J16: 6500 | K16: 800 | L16: 12000 | M16: 8000 | N16: 500 | O16: 7500 | P16: 5000 | Q16: 500 | R16: 7500 | S16: 5000 | V16: Her er tabel med forkellige max priser. | AC16: 2018-08-22T10:14:23.070
A17: 16 | B17: 400 | C17: 6400 | D17: 4000 | E17: 500 | F17: 8000 | G17: 5000 | H17: 650 | I17: 10400 | J17: 6500 | K17: 800 | L17: 12800 | M17: 8000 | N17: 500 | O17: 8000 | P17: 5000 | Q17: 500 | R17: 8000 | S17: 5000 | AC17: 2018-08-23T10:14:23.070
A18: 17 | B18: 400 | C18: 6800 | D18: 4000 | E18: 500 | F18: 8500 | G18: 5000 | H18: 650 | I18: 11050 | J18: 6500 | K18: 800 | L18: 13600 | M18: 8000 | N18: 500 | O18: 8500 | P18: 5000 | Q18: 500 | R18: 8500 | S18: 5000 | V18: Kolonne A er = dagene | AC18: 2018-08-24T10:14:23.070
A19: 18 | B19: 400 | C19: 7200 | D19: 4000 | E19: 500 | F19: 9000 | G19: 5000 | H19: 650 | I19: 11700 | J19: 6500 | K19: 800 | L19: 14400 | M19: 8000 | N19: 500 | O19: 9000 | P19: 5000 | Q19: 500 | R19: 9000 | S19: 5000 | V19: Kolonne B, E, H, K, N og Q er = forskellige "boligtyper" med priser. | AC19: 2018-08-25T10:14:23.070
A20: 19 | B20: 400 | C20: 7600 | D20: 4000 | E20: 500 | F20: 9500 | G20: 5000 | H20: 650 | I20: 12350 | J20: 6500 | K20: 800 | L20: 15200 | M20: 8000 | N20: 500 | O20: 9500 | P20: 5000 | Q20: 500 | R20: 9500 | S20: 5000 | V20: Kolonne C, F, I, L, O og R er = oprindelig pris | AC20: 2018-08-26T10:14:23.070
A21: 20 | B21: 400 | C21: 8000 | D21: 4000 | E21: 500 | F21: 10000 | G21: 5000 | H21: 650 | I21: 13000 | J21: 6500 | K21: 800 | L21: 16000 | M21: 8000 | N21: 500 | O21: 10000 | P21: 5000 | Q21: 500 | R21: 10000 | S21: 5000 | V21: Kolonne D, G, J, M, P og S er = MAKS priser | AC21: 2018-08-27T10:14:23.070
A22: 21 | B22: 400 | C22: 8400 | D22: 4000 | E22: 500 | F22: 10500 | G22: 5000 | H22: 650 | I22: 13650 | J22: 6500 | K22: 800 | L22: 16800 | M22: 8000 | N22: 500 | O22: 10500 | P22: 5000 | Q22: 500 | R22: 10500 | S22: 5000 | AC22: 2018-08-28T10:14:23.070
A23: 22 | B23: 400 | C23: 8800 | D23: 4000 | E23: 500 | F23: 11000 | G23: 5000 | H23: 650 | I23: 14300 | J23: 6500 | K23: 800 | L23: 17600 | M23: 8000 | N23: 500 | O23: 11000 | P23: 5000 | Q23: 500 | R23: 11000 | S23: 5000 | V23: På V3 er en rulleliste over boligtyper hvor man kan vælger en af dem. | AC23: 2018-08-29T10:14:23.070
A24: 23 | B24: 400 | C24: 9200 | D24: 4000 | E24: 500 | F24: 11500 | G24: 5000 | H24: 650 | I24: 14950 | J24: 6500 | K24: 800 | L24: 18400 | M24: 8000 | N24: 500 | O24: 11500 | P24: 5000 | Q24: 500 | R24: 11500 | S24: 5000 | V24: På W3 er man kan indtaste dagene fra 1-360 dag | AC24: 2018-08-30T10:14:23.070
A25: 24 | B25: 400 | C25: 9600 | D25: 4000 | E25: 500 | F25: 12000 | G25: 5000 | H25: 650 | I25: 15600 | J25: 6500 | K25: 800 | L25: 19200 | M25: 8000 | N25: 500 | O25: 12000 | P25: 5000 | Q25: 500 | R25: 12000 | S25: 5000 | V25: På X3 skal man finde MAKS PRIS som står på Kolonne D, G, J, M, P og S. | AC25: 2018-08-31T10:14:23.070
A26: 25 | B26: 400 | C26: 10000 | D26: 4000 | E26: 500 | F26: 12500 | G26: 5000 | H26: 650 | I26: 16250 | J26: 6500 | K26: 800 | L26: 20000 | M26: 8000 | N26: 500 | O26: 12500 | P26: 5000 | Q26: 500 | R26: 12500 | S26: 5000 | AC26: 2018-09-01T10:14:23.070
A27: 26 | B27: 400 | C27: 10400 | D27: 4000 | E27: 500 | F27: 13000 | G27: 5000 | H27: 650 | I27: 16900 | J27: 6500 | K27: 800 | L27: 20800 | M27: 8000 | N27: 500 | O27: 13000 | P27: 5000 | Q27: 500 | R27: 13000 | S27: 5000 | V27: Eks. når jeg vælger FV med 36 dag skal kunne er lige med 16.000kr. | AC27: 2018-09-02T10:14:23.070
A28: 27 | B28: 400 | C28: 10800 | D28: 4000 | E28: 500 | F28: 13500 | G28: 5000 | H28: 650 | I28: 17550 | J28: 6500 | K28: 800 | L28: 21600 | M28: 8000 | N28: 500 | O28: 13500 | P28: 5000 | Q28: 500 | R28: 13500 | S28: 5000 | V28: Når man skifter til FL2 med 36 dag = 20.000kr. | AC28: 2018-09-03T10:14:23.070
A29: 28 | B29: 400 | C29: 11200 | D29: 4000 | E29: 500 | F29: 14000 | G29: 5000 | H29: 650 | I29: 18200 | J29: 6500 | K29: 800 | L29: 22400 | M29: 8000 | N29: 500 | O29: 14000 | P29: 5000 | Q29: 500 | R29: 14000 | S29: 5000 | AC29: 2018-09-04T10:14:23.070
A30: 29 | B30: 400 | C30: 11600 | D30: 4000 | E30: 500 | F30: 14500 | G30: 5000 | H30: 650 | I30: 18850 | J30: 6500 | K30: 800 | L30: 23200 | M30: 8000 | N30: 500 | O30: 14500 | P30: 5000 | Q30: 500 | R30: 14500 | S30: 5000 | AC30: 2018-09-05T10:14:23.070
A31: 30 | B31: 400 | C31: 12000 | D31: 4000 | E31: 500 | F31: 15000 | G31: 5000 | H31: 650 | I31: 19500 | J31: 6500 | K31: 800 | L31: 24000 | M31: 8000 | N31: 500 | O31: 15000 | P31: 5000 | Q31: 500 | R31: 15000 | S31: 5000 | AC31: 2018-09-06T10:14:23.070
A32: 31 | B32: 400 | C32: 12400 | D32: =D31*2 -> 8000 | E32: 500 | F32: 15500 | G32: =G31*2 -> 10000 | H32: 650 | I32: 20150 | J32: =J31*2 -> 13000 | K32: 800 | L32: 24800 | M32: =M31+M11 -> 16000 | N32: 500 | O32: 15500 | P32: =P31+P11 -> 10000 | Q32: 500 | R32: 15500 | S32: =S31+S11 -> 10000 | AC32: 2018-09-07T10:14:23.070
A33: 32 | B33: 400 | C33: 12800 | D33: =D32 -> 8000 | E33: 500 | F33: 16000 | G33: =G32 -> 10000 | H33: 650 | I33: 20800 | J33: =J32 -> 13000 | K33: 800 | L33: 25600 | M33: =M32 -> 16000 | N33: 500 | O33: 16000 | P33: =P32 -> 10000 | Q33: 500 | R33: 16000 | S33: =S32 -> 10000 | AC33: 2018-09-08T10:14:23.070
A34: 33 | B34: 400 | C34: 13200 | D34: =D33 -> 8000 | E34: 500 | F34: 16500 | G34: =G33 -> 10000 | H34: 650 | I34: 21450 | J34: =J33 -> 13000 | K34: 800 | L34: 26400 | M34: =M33 -> 16000 | N34: 500 | O34: 16500 | P34: =P33 -> 10000 | Q34: 500 | R34: 16500 | S34: =S33 -> 10000 | AC34: 2018-09-09T10:14:23.070
A35: 34 | B35: 400 | C35: 13600 | D35: 8000 | E35: 500 | F35: 17000 | G35: 10000 | H35: 650 | I35: 22100 | J35: 13000 | K35: 800 | L35: 27200 | M35: 16000 | N35: 500 | O35: 17000 | P35: 10000 | Q35: 500 | R35: 17000 | S35: 10000 | AC35: 2018-09-10T10:14:23.070
A36: 35 | B36: 400 | C36: 14000 | D36: 8000 | E36: 500 | F36: 17500 | G36: 10000 | H36: 650 | I36: 22750 | J36: 13000 | K36: 800 | L36: 28000 | M36: 16000 | N36: 500 | O36: 17500 | P36: 10000 | Q36: 500 | R36: 17500 | S36: 10000 | AC36: 2018-09-11T10:14:23.070
A37: 36 | B37: 400 | C37: 14400 | D37: 8000 | E37: 500 | F37: 18000 | G37: 10000 | H37: 650 | I37: 23400 | J37: 13000 | K37: 800 | L37: 28800 | M37: 16000 | N37: 500 | O37: 18000 | P37: 10000 | Q37: 500 | R37: 18000 | S37: 10000 | AC37: 2018-09-12T10:14:23.070
A38: 37 | B38: 400 | C38: 14800 | D38: 8000 | E38: 500 | F38: 18500 | G38: 10000 | H38: 650 | I38: 24050 | J38: 13000 | K38: 800 | L38: 29600 | M38: 16000 | N38: 500 | O38: 18500 | P38: 10000 | Q38: 500 | R38: 18500 | S38: 10000 | AC38: 2018-09-13T10:14:23.070
A39: 38 | B39: 400 | C39: 15200 | D39: 8000 | E39: 500 | F39: 19000 | G39: 10000 | H39: 650 | I39: 24700 | J39: 13000 | K39: 800 | L39: 30400 | M39: 16000 | N39: 500 | O39: 19000 | P39: 10000 | Q39: 500 | R39: 19000 | S39: 10000 | AC39: 2018-09-14T10:14:23.070
A40: 39 | B40: 400 | C40: 15600 | D40: 8000 | E40: 500 | F40: 19500 | G40: 10000 | H40: 650 | I40: 25350 | J40: 13000 | K40: 800 | L40: 31200 | M40: 16000 | N40: 500 | O40: 19500 | P40: 10000 | Q40: 500 | R40: 19500 | S40: 10000 | AC40: 2018-09-15T10:14:23.070
A41: 40 | B41: 400 | C41: 16000 | D41: 8000 | E41: 500 | F41: 20000 | G41: 10000 | H41: 650 | I41: 26000 | J41: 13000 | K41: 800 | L41: 32000 | M41: 16000 | N41: 500 | O41: 20000 | P41: 10000 | Q41: 500 | R41: 20000 | S41: 10000 | AC41: 2018-09-16T10:14:23.070
A42: 41 | B42: 400 | C42: 16400 | D42: 8000 | E42: 500 | F42: 20500 | G42: 10000 | H42: 650 | I42: 26650 | J42: 13000 | K42: 800 | L42: 32800 | M42: 16000 | N42: 500 | O42: 20500 | P42: 10000 | Q42: 500 | R42: 20500 | S42: 10000 | AC42: 2018-09-17T10:14:23.070
A43: 42 | B43: 400 | C43: 16800 | D43: 8000 | E43: 500 | F43: 21000 | G43: 10000 | H43: 650 | I43: 27300 | J43: 13000 | K43: 800 | L43: 33600 | M43: 16000 | N43: 500 | O43: 21000 | P43: 10000 | Q43: 500 | R43: 21000 | S43: 10000 | AC43: 2018-09-18T10:14:23.070
A44: 43 | B44: 400 | C44: 17200 | D44: 8000 | E44: 500 | F44: 21500 | G44: 10000 | H44: 650 | I44: 27950 | J44: 13000 | K44: 800 | L44: 34400 | M44: 16000 | N44: 500 | O44: 21500 | P44: 10000 | Q44: 500 | R44: 21500 | S44: 10000 | AC44: 2018-09-19T10:14:23.070
A45: 44 | B45: 400 | C45: 17600 | D45: 8000 | E45: 500 | F45: 22000 | G45: 10000 | H45: 650 | I45: 28600 | J45: 13000 | K45: 800 | L45: 35200 | M45: 16000 | N45: 500 | O45: 22000 | P45: 10000 | Q45: 500 | R45: 22000 | S45: 10000 | AC45: 2018-09-20T10:14:23.070
A46: 45 | B46: 400 | C46: 18000 | D46: 8000 | E46: 500 | F46: 22500 | G46: 10000 | H46: 650 | I46: 29250 | J46: 13000 | K46: 800 | L46: 36000 | M46: 16000 | N46: 500 | O46: 22500 | P46: 10000 | Q46: 500 | R46: 22500 | S46: 10000 | AC46: 2018-09-21T10:14:23.070
A47: 46 | B47: 400 | C47: 18400 | D47: 8000 | E47: 500 | F47: 23000 | G47: 10000 | H47: 650 | I47: 29900 | J47: 13000 | K47: 800 | L47: 36800 | M47: 16000 | N47: 500 | O47: 23000 | P47: 10000 | Q47: 500 | R47: 23000 | S47: 10000 | AC47: 2018-09-22T10:14:23.070
A48: 47 | B48: 400 | C48: 18800 | D48: 8000 | E48: 500 | F48: 23500 | G48: 10000 | H48: 650 | I48: 30550 | J48: 13000 | K48: 800 | L48: 37600 | M48: 16000 | N48: 500 | O48: 23500 | P48: 10000 | Q48: 500 | R48: 23500 | S48: 10000 | AC48: 2018-09-23T10:14:23.070
A49: 48 | B49: 400 | C49: 19200 | D49: 8000 | E49: 500 | F49: 24000 | G49: 10000 | H49: 650 | I49: 31200 | J49: 13000 | K49: 800 | L49: 38400 | M49: 16000 | N49: 500 | O49: 24000 | P49: 10000 | Q49: 500 | R49: 24000 | S49: 10000 | AC49: 2018-09-24T10:14:23.070
A50: 49 | B50: 400 | C50: 19600 | D50: 8000 | E50: 500 | F50: 24500 | G50: 10000 | H50: 650 | I50: 31850 | J50: 13000 | K50: 800 | L50: 39200 | M50: 16000 | N50: 500 | O50: 24500 | P50: 10000 | Q50: 500 | R50: 24500 | S50: 10000 | AC50: 2018-09-25T10:14:23.070
A51: 50 | B51: 400 | C51: 20000 | D51: 8000 | E51: 500 | F51: 25000 | G51: 10000 | H51: 650 | I51: 32500 | J51: 13000 | K51: 800 | L51: 40000 | M51: 16000 | N51: 500 | O51: 25000 | P51: 10000 | Q51: 500 | R51: 25000 | S51: 10000 | AC51: 2018-09-26T10:14:23.070
A52: 51 | B52: 400 | C52: 20400 | D52: 8000 | E52: 500 | F52: 25500 | G52: 10000 | H52: 650 | I52: 33150 | J52: 13000 | K52: 800 | L52: 40800 | M52: 16000 | N52: 500 | O52: 25500 | P52: 10000 | Q52: 500 | R52: 25500 | S52: 10000 | AC52: 2018-09-27T10:14:23.070
A53: 52 | B53: 400 | C53: 20800 | D53: 8000 | E53: 500 | F53: 26000 | G53: 10000 | H53: 650 | I53: 33800 | J53: 13000 | K53: 800 | L53: 41600 | M53: 16000 | N53: 500 | O53: 26000 | P53: 10000 | Q53: 500 | R53: 26000 | S53: 10000 | AC53: 2018-09-28T10:14:23.070
A54: 53 | B54: 400 | C54: 21200 | D54: 8000 | E54: 500 | F54: 26500 | G54: 10000 | H54: 650 | I54: 34450 | J54: 13000 | K54: 800 | L54: 42400 | M54: 16000 | N54: 500 | O54: 26500 | P54: 10000 | Q54: 500 | R54: 26500 | S54: 10000 | AC54: 2018-09-29T10:14:23.070
A55: 54 | B55: 400 | C55: 21600 | D55: 8000 | E55: 500 | F55: 27000 | G55: 10000 | H55: 650 | I55: 35100 | J55: 13000 | K55: 800 | L55: 43200 | M55: 16000 | N55: 500 | O55: 27000 | P55: 10000 | Q55: 500 | R55: 27000 | S55: 10000 | AC55: 2018-09-30T10:14:23.070
A56: 55 | B56: 400 | C56: 22000 | D56: 8000 | E56: 500 | F56: 27500 | G56: 10000 | H56: 650 | I56: 35750 | J56: 13000 | K56: 800 | L56: 44000 | M56: 16000 | N56: 500 | O56: 27500 | P56: 10000 | Q56: 500 | R56: 27500 | S56: 10000 | AC56: 2018-10-01T10:14:23.070
A57: 56 | B57: 400 | C57: 22400 | D57: 8000 | E57: 500 | F57: 28000 | G57: 10000 | H57: 650 | I57: 36400 | J57: 13000 | K57: 800 | L57: 44800 | M57: 16000 | N57: 500 | O57: 28000 | P57: 10000 | Q57: 500 | R57: 28000 | S57: 10000 | AC57: 2018-10-02T10:14:23.070
A58: 57 | B58: 400 | C58: 22800 | D58: 8000 | E58: 500 | F58: 28500 | G58: 10000 | H58: 650 | I58: 37050 | J58: 13000 | K58: 800 | L58: 45600 | M58: 16000 | N58: 500 | O58: 28500 | P58: 10000 | Q58: 500 | R58: 28500 | S58: 10000 | AC58: 2018-10-03T10:14:23.070
A59: 58 | B59: 400 | C59: 23200 | D59: 8000 | E59: 500 | F59: 29000 | G59: 10000 | H59: 650 | I59: 37700 | J59: 13000 | K59: 800 | L59: 46400 | M59: 16000 | N59: 500 | O59: 29000 | P59: 10000 | Q59: 500 | R59: 29000 | S59: 10000 | AC59: 2018-10-04T10:14:23.070
A60: 59 | B60: 400 | C60: 23600 | D60: 8000 | E60: 500 | F60: 29500 | G60: 10000 | H60: 650 | I60: 38350 | J60: 13000 | K60: 800 | L60: 47200 | M60: 16000 | N60: 500 | O60: 29500 | P60: 10000 | Q60: 500 | R60: 29500 | S60: 10000 | AC60: 2018-10-05T10:14:23.070
A61: 60 | B61: 400 | C61: 24000 | D61: 8000 | E61: 500 | F61: 30000 | G61: 10000 | H61: 650 | I61: 39000 | J61: 13000 | K61: 800 | L61: 48000 | M61: 16000 | N61: 500 | O61: 30000 | P61: 10000 | Q61: 500 | R61: 30000 | S61: 10000 | AC61: 2018-10-06T10:14:23.070
A62: 61 | B62: 400 | C62: 24400 | D62: =D61+D11 -> 12000 | E62: 500 | F62: 30500 | G62: =G61+5000 -> 15000 | H62: 650 | I62: 39650 | J62: =J61+5000 -> 18000 | K62: 800 | L62: 48800 | M62: =M61+M11 -> 24000 | N62: 500 | O62: 30500 | P62: =P61+P11 -> 15000 | Q62: 500 | R62: 30500 | S62: =S61+S11 -> 15000 | AC62: 2018-10-07T10:14:23.070
A63: 62 | B63: 400 | C63: 24800 | D63: =D62 -> 12000 | E63: 500 | F63: 31000 | G63: =G62 -> 15000 | H63: 650 | I63: 40300 | J63: =J62 -> 18000 | K63: 800 | L63: 49600 | M63: =M62 -> 24000 | N63: 500 | O63: 31000 | P63: =P62 -> 15000 | Q63: 500 | R63: 31000 | S63: =S62 -> 15000 | AC63: 2018-10-08T10:14:23.070
A64: 63 | B64: 400 | C64: 25200 | D64: =D63 -> 12000 | E64: 500 | F64: 31500 | G64: =G63 -> 15000 | H64: 650 | I64: 40950 | J64: =J63 -> 18000 | K64: 800 | L64: 50400 | M64: =M63 -> 24000 | N64: 500 | O64: 31500 | P64: =P63 -> 15000 | Q64: 500 | R64: 31500 | S64: =S63 -> 15000 | AC64: 2018-10-09T10:14:23.070
A65: 64 | B65: 400 | C65: 25600 | D65: 12000 | E65: 500 | F65: 32000 | G65: 15000 | H65: 650 | I65: 41600 | J65: 18000 | K65: 800 | L65: 51200 | M65: 24000 | N65: 500 | O65: 32000 | P65: 15000 | Q65: 500 | R65: 32000 | S65: 15000 | AC65: 2018-10-10T10:14:23.070
A66: 65 | B66: 400 | C66: 26000 | D66: 12000 | E66: 500 | F66: =E66*A66 -> 32500 | G66: 15000 | H66: 650 | I66: 42250 | J66: 18000 | K66: 800 | L66: 52000 | M66: 24000 | N66: 500 | O66: =N66*A66 -> 32500 | P66: 15000 | Q66: 500 | R66: =Q66*A66 -> 32500 | S66: 15000 | AC66: 2018-10-11T10:14:23.070
A67: 66 | B67: 400 | C67: =B67*A67 -> 26400 | D67: 12000 | E67: 500 | F67: 33000 | G67: 15000 | H67: 650 | I67: 42900 | J67: 18000 | K67: 800 | L67: 52800 | M67: 24000 | N67: 500 | O67: 33000 | P67: 15000 | Q67: 500 | R67: 33000 | S67: 15000 | AC67: =AC66+1 -> 2018-10-12T10:14:23.070
A68: 67 | B68: =B67 -> 400 | C68: 26800 | D68: 12000 | E68: 500 | F68: 33500 | G68: 15000 | H68: 650 | I68: =H68*A68 -> 43550 | J68: 18000 | K68: 800 | L68: =K68*A68 -> 53600 | M68: 24000 | N68: 500 | O68: 33500 | P68: 15000 | Q68: 500 | R68: 33500 | S68: 15000 | AC68: 2018-10-13T10:14:23.070
A69: 68 | B69: 400 | C69: 27200 | D69: 12000 | E69: 500 | F69: 34000 | G69: 15000 | H69: 650 | I69: 44200 | J69: 18000 | K69: 800 | L69: 54400 | M69: 24000 | N69: 500 | O69: 34000 | P69: 15000 | Q69: 500 | R69: 34000 | S69: 15000 | AC69: 2018-10-14T10:14:23.070
A70: 69 | B70: 400 | C70: 27600 | D70: 12000 | E70: 500 | F70: 34500 | G70: 15000 | H70: 650 | I70: 44850 | J70: 18000 | K70: 800 | L70: 55200 | M70: 24000 | N70: 500 | O70: 34500 | P70: 15000 | Q70: 500 | R70: 34500 | S70: 15000 | AC70: 2018-10-15T10:14:23.070
A71: 70 | B71: 400 | C71: 28000 | D71: 12000 | E71: 500 | F71: 35000 | G71: 15000 | H71: 650 | I71: 45500 | J71: 18000 | K71: 800 | L71: 56000 | M71: 24000 | N71: 500 | O71: 35000 | P71: 15000 | Q71: 500 | R71: 35000 | S71: 15000 | AC71: 2018-10-16T10:14:23.070
A72: 71 | B72: 400 | C72: 28400 | D72: 12000 | E72: 500 | F72: 35500 | G72: 15000 | H72: 650 | I72: 46150 | J72: 18000 | K72: 800 | L72: 56800 | M72: 24000 | N72: 500 | O72: 35500 | P72: 15000 | Q72: 500 | R72: 35500 | S72: 15000 | AC72: 2018-10-17T10:14:23.070
A73: 72 | B73: 400 | C73: 28800 | D73: 12000 | E73: 500 | F73: 36000 | G73: 15000 | H73: 650 | I73: 46800 | J73: 18000 | K73: 800 | L73: 57600 | M73: 24000 | N73: 500 | O73: 36000 | P73: 15000 | Q73: 500 | R73: 36000 | S73: 15000 | AC73: 2018-10-18T10:14:23.070
A74: 73 | B74: 400 | C74: 29200 | D74: 12000 | E74: 500 | F74: 36500 | G74: 15000 | H74: 650 | I74: 47450 | J74: 18000 | K74: 800 | L74: 58400 | M74: 24000 | N74: 500 | O74: 36500 | P74: 15000 | Q74: 500 | R74: 36500 | S74: 15000 | AC74: 2018-10-19T10:14:23.070
A75: 74 | B75: 400 | C75: 29600 | D75: 12000 | E75: 500 | F75: 37000 | G75: 15000 | H75: 650 | I75: 48100 | J75: 18000 | K75: 800 | L75: 59200 | M75: 24000 | N75: 500 | O75: 37000 | P75: 15000 | Q75: 500 | R75: 37000 | S75: 15000 | AC75: 2018-10-20T10:14:23.070
A76: 75 | B76: 400 | C76: 30000 | D76: 12000 | E76: 500 | F76: 37500 | G76: 15000 | H76: 650 | I76: 48750 | J76: 18000 | K76: 800 | L76: 60000 | M76: 24000 | N76: 500 | O76: 37500 | P76: 15000 | Q76: 500 | R76: 37500 | S76: 15000 | AC76: 2018-10-21T10:14:23.070
A77: 76 | B77: 400 | C77: 30400 | D77: 12000 | E77: 500 | F77: 38000 | G77: 15000 | H77: 650 | I77: 49400 | J77: 18000 | K77: 800 | L77: 60800 | M77: 24000 | N77: 500 | O77: 38000 | P77: 15000 | Q77: 500 | R77: 38000 | S77: 15000 | AC77: 2018-10-22T10:14:23.070
A78: 77 | B78: 400 | C78: 30800 | D78: 12000 | E78: 500 | F78: 38500 | G78: 15000 | H78: 650 | I78: 50050 | J78: 18000 | K78: 800 | L78: 61600 | M78: 24000 | N78: 500 | O78: 38500 | P78: 15000 | Q78: 500 | R78: 38500 | S78: 15000 | AC78: 2018-10-23T10:14:23.070
A79: 78 | B79: 400 | C79: 31200 | D79: 12000 | E79: 500 | F79: 39000 | G79: 15000 | H79: 650 | I79: 50700 | J79: 18000 | K79: 800 | L79: 62400 | M79: 24000 | N79: 500 | O79: 39000 | P79: 15000 | Q79: 500 | R79: 39000 | S79: 15000 | AC79: 2018-10-24T10:14:23.070
A80: 79 | B80: 400 | C80: 31600 | D80: =D79 -> 12000 | E80: 500 | F80: 39500 | G80: =G79 -> 15000 | H80: 650 | I80: 51350 | J80: =J79 -> 18000 | K80: 800 | L80: 63200 | M80: =M79 -> 24000 | N80: 500 | O80: 39500 | P80: =P79 -> 15000 | Q80: 500 | R80: 39500 | S80: 15000 | AC80: 2018-10-25T10:14:23.070
A81: 80 | B81: 400 | C81: 32000 | D81: 12000 | E81: 500 | F81: 40000 | G81: 15000 | H81: 650 | I81: 52000 | J81: 18000 | K81: 800 | L81: 64000 | M81: 24000 | N81: 500 | O81: 40000 | P81: 15000 | Q81: 500 | R81: 40000 | S81: 15000 | AC81: 2018-10-26T10:14:23.070
A82: 81 | B82: 400 | C82: 32400 | D82: 12000 | E82: 500 | F82: 40500 | G82: 15000 | H82: 650 | I82: 52650 | J82: 18000 | K82: 800 | L82: 64800 | M82: 24000 | N82: 500 | O82: 40500 | P82: 15000 | Q82: 500 | R82: 40500 | S82: 15000 | AC82: 2018-10-27T10:14:23.070
A83: 82 | B83: 400 | C83: 32800 | D83: 12000 | E83: 500 | F83: 41000 | G83: 15000 | H83: 650 | I83: 53300 | J83: 18000 | K83: 800 | L83: 65600 | M83: 24000 | N83: 500 | O83: 41000 | P83: 15000 | Q83: 500 | R83: 41000 | S83: 15000 | AC83: 2018-10-28T10:14:23.070
A84: 83 | B84: 400 | C84: 33200 | D84: 12000 | E84: 500 | F84: 41500 | G84: 15000 | H84: 650 | I84: 53950 | J84: 18000 | K84: 800 | L84: 66400 | M84: 24000 | N84: 500 | O84: 41500 | P84: 15000 | Q84: 500 | R84: 41500 | S84: 15000 | AC84: 2018-10-29T10:14:23.070
A85: 84 | B85: 400 | C85: 33600 | D85: 12000 | E85: 500 | F85: 42000 | G85: 15000 | H85: 650 | I85: 54600 | J85: 18000 | K85: 800 | L85: 67200 | M85: 24000 | N85: 500 | O85: 42000 | P85: 15000 | Q85: 500 | R85: 42000 | S85: 15000 | AC85: 2018-10-30T10:14:23.070
A86: 85 | B86: 400 | C86: 34000 | D86: 12000 | E86: 500 | F86: 42500 | G86: 15000 | H86: 650 | I86: 55250 | J86: 18000 | K86: 800 | L86: 68000 | M86: 24000 | N86: 500 | O86: 42500 | P86: 15000 | Q86: 500 | R86: 42500 | S86: 15000 | AC86: 2018-10-31T10:14:23.070
A87: 86 | B87: 400 | C87: 34400 | D87: 12000 | E87: 500 | F87: 43000 | G87: 15000 | H87: 650 | I87: 55900 | J87: 18000 | K87: 800 | L87: 68800 | M87: 24000 | N87: 500 | O87: 43000 | P87: 15000 | Q87: 500 | R87: 43000 | S87: 15000 | AC87: 2018-11-01T10:14:23.070
A88: 87 | B88: 400 | C88: 34800 | D88: 12000 | E88: 500 | F88: 43500 | G88: 15000 | H88: 650 | I88: 56550 | J88: 18000 | K88: 800 | L88: 69600 | M88: 24000 | N88: 500 | O88: 43500 | P88: 15000 | Q88: 500 | R88: 43500 | S88: 15000 | AC88: 2018-11-02T10:14:23.070
A89: 88 | B89: 400 | C89: 35200 | D89: 12000 | E89: 500 | F89: 44000 | G89: 15000 | H89: 650 | I89: 57200 | J89: 18000 | K89: 800 | L89: 70400 | M89: 24000 | N89: 500 | O89: 44000 | P89: 15000 | Q89: 500 | R89: 44000 | S89: 15000 | AC89: 2018-11-03T10:14:23.070
A90: 89 | B90: 400 | C90: 35600 | D90: 12000 | E90: 500 | F90: 44500 | G90: 15000 | H90: 650 | I90: 57850 | J90: 18000 | K90: 800 | L90: 71200 | M90: 24000 | N90: 500 | O90: 44500 | P90: 15000 | Q90: 500 | R90: 44500 | S90: 15000 | AC90: 2018-11-04T10:14:23.070
A91: 90 | B91: 400 | C91: 36000 | D91: 12000 | E91: 500 | F91: 45000 | G91: 15000 | H91: 650 | I91: 58500 | J91: 18000 | K91: 800 | L91: 72000 | M91: 24000 | N91: 500 | O91: 45000 | P91: 15000 | Q91: 500 | R91: 45000 | S91: 15000 | AC91: 2018-11-05T10:14:23.070
A92: 91 | B92: 400 | C92: 36400 | D92: =D91+D11 -> 16000 | E92: 500 | F92: 45500 | G92: =G91+5000 -> 20000 | H92: 650 | I92: 59150 | J92: =J91+5000 -> 23000 | K92: 800 | L92: 72800 | M92: =M91+M11 -> 32000 | N92: 500 | O92: 45500 | P92: =P91+P11 -> 20000 | Q92: 500 | R92: 45500 | S92: =S91+S11 -> 20000 | AC92: 2018-11-06T10:14:23.070
A93: 92 | B93: 400 | C93: 36800 | D93: =D92 -> 16000 | E93: 500 | F93: 46000 | G93: =G92 -> 20000 | H93: 650 | I93: 59800 | J93: =J92 -> 23000 | K93: 800 | L93: 73600 | M93: =M92 -> 32000 | N93: 500 | O93: 46000 | P93: =P92 -> 20000 | Q93: 500 | R93: 46000 | S93: =S92 -> 20000 | AC93: 2018-11-07T10:14:23.070
A94: 93 | B94: 400 | C94: 37200 | D94: =D93 -> 16000 | E94: 500 | F94: 46500 | G94: =G93 -> 20000 | H94: 650 | I94: 60450 | J94: =J93 -> 23000 | K94: 800 | L94: 74400 | M94: =M93 -> 32000 | N94: 500 | O94: 46500 | P94: =P93 -> 20000 | Q94: 500 | R94: 46500 | S94: =S93 -> 20000 | AC94: 2018-11-08T10:14:23.070
A95: 94 | B95: 400 | C95: 37600 | D95: 16000 | E95: 500 | F95: 47000 | G95: 20000 | H95: 650 | I95: 61100 | J95: 23000 | K95: 800 | L95: 75200 | M95: 32000 | N95: 500 | O95: 47000 | P95: 20000 | Q95: 500 | R95: 47000 | S95: 20000 | AC95: 2018-11-09T10:14:23.070
A96: 95 | B96: 400 | C96: 38000 | D96: 16000 | E96: 500 | F96: 47500 | G96: 20000 | H96: 650 | I96: 61750 | J96: 23000 | K96: 800 | L96: 76000 | M96: 32000 | N96: 500 | O96: 47500 | P96: 20000 | Q96: 500 | R96: 47500 | S96: 20000 | AC96: 2018-11-10T10:14:23.070
A97: 96 | B97: 400 | C97: 38400 | D97: 16000 | E97: 500 | F97: 48000 | G97: 20000 | H97: 650 | I97: 62400 | J97: 23000 | K97: 800 | L97: 76800 | M97: 32000 | N97: 500 | O97: 48000 | P97: 20000 | Q97: 500 | R97: 48000 | S97: 20000 | AC97: 2018-11-11T10:14:23.070
A98: 97 | B98: 400 | C98: 38800 | D98: 16000 | E98: 500 | F98: 48500 | G98: 20000 | H98: 650 | I98: 63050 | J98: 23000 | K98: 800 | L98: 77600 | M98: 32000 | N98: 500 | O98: 48500 | P98: 20000 | Q98: 500 | R98: 48500 | S98: 20000 | AC98: 2018-11-12T10:14:23.070
A99: 98 | B99: 400 | C99: 39200 | D99: 16000 | E99: 500 | F99: 49000 | G99: 20000 | H99: 650 | I99: 63700 | J99: 23000 | K99: 800 | L99: 78400 | M99: 32000 | N99: 500 | O99: 49000 | P99: 20000 | Q99: 500 | R99: 49000 | S99: 20000 | AC99: 2018-11-13T10:14:23.070
A100: 99 | B100: 400 | C100: 39600 | D100: 16000 | E100: 500 | F100: 49500 | G100: 20000 | H100: 650 | I100: 64350 | J100: 23000 | K100: 800 | L100: 79200 | M100: 32000 | N100: 500 | O100: 49500 | P100: 20000 | Q100: 500 | R100: 49500 | S100: 20000 | AC100: 2018-11-14T10:14:23.070
A101: 100 | B101: 400 | C101: 40000 | D101: 16000 | E101: 500 | F101: 50000 | G101: 20000 | H101: 650 | I101: 65000 | J101: 23000 | K101: 800 | L101: 80000 | M101: 32000 | N101: 500 | O101: 50000 | P101: 20000 | Q101: 500 | R101: 50000 | S101: 20000 | AC101: 2018-11-15T10:14:23.070
A102: 101 | B102: 400 | C102: 40400 | D102: 16000 | E102: 500 | F102: 50500 | G102: 20000 | H102: 650 | I102: 65650 | J102: 23000 | K102: 800 | L102: 80800 | M102: 32000 | N102: 500 | O102: 50500 | P102: 20000 | Q102: 500 | R102: 50500 | S102: 20000 | AC102: 2018-11-16T10:14:23.070
A103: 102 | B103: 400 | C103: 40800 | D103: 16000 | E103: 500 | F103: 51000 | G103: 20000 | H103: 650 | I103: 66300 | J103: 23000 | K103: 800 | L103: 81600 | M103: 32000 | N103: 500 | O103: 51000 | P103: 20000 | Q103: 500 | R103: 51000 | S103: 20000 | AC103: 2018-11-17T10:14:23.070
A104: 103 | B104: 400 | C104: 41200 | D104: 16000 | E104: 500 | F104: 51500 | G104: 20000 | H104: 650 | I104: 66950 | J104: 23000 | K104: 800 | L104: 82400 | M104: 32000 | N104: 500 | O104: 51500 | P104: 20000 | Q104: 500 | R104: 51500 | S104: 20000 | AC104: 2018-11-18T10:14:23.070
A105: 104 | B105: 400 | C105: 41600 | D105: 16000 | E105: 500 | F105: 52000 | G105: 20000 | H105: 650 | I105: 67600 | J105: 23000 | K105: 800 | L105: 83200 | M105: 32000 | N105: 500 | O105: 52000 | P105: 20000 | Q105: 500 | R105: 52000 | S105: 20000 | AC105: 2018-11-19T10:14:23.070
A106: 105 | B106: 400 | C106: 42000 | D106: 16000 | E106: 500 | F106: 52500 | G106: 20000 | H106: 650 | I106: 68250 | J106: 23000 | K106: 800 | L106: 84000 | M106: 32000 | N106: 500 | O106: 52500 | P106: 20000 | Q106: 500 | R106: 52500 | S106: 20000 | AC106: 2018-11-20T10:14:23.070
A107: 106 | B107: 400 | C107: 42400 | D107: 16000 | E107: 500 | F107: 53000 | G107: 20000 | H107: 650 | I107: 68900 | J107: 23000 | K107: 800 | L107: 84800 | M107: 32000 | N107: 500 | O107: 53000 | P107: 20000 | Q107: 500 | R107: 53000 | S107: 20000 | AC107: 2018-11-21T10:14:23.070
A108: 107 | B108: 400 | C108: 42800 | D108: 16000 | E108: 500 | F108: 53500 | G108: 20000 | H108: 650 | I108: 69550 | J108: 23000 | K108: 800 | L108: 85600 | M108: 32000 | N108: 500 | O108: 53500 | P108: 20000 | Q108: 500 | R108: 53500 | S108: 20000 | AC108: 2018-11-22T10:14:23.070
A109: 108 | B109: 400 | C109: 43200 | D109: 16000 | E109: 500 | F109: 54000 | G109: 20000 | H109: 650 | I109: 70200 | J109: 23000 | K109: 800 | L109: 86400 | M109: 32000 | N109: 500 | O109: 54000 | P109: 20000 | Q109: 500 | R109: 54000 | S109: 20000 | AC109: 2018-11-23T10:14:23.070
A110: 109 | B110: 400 | C110: 43600 | D110: =D109 -> 16000 | E110: 500 | F110: 54500 | G110: =G109 -> 20000 | H110: 650 | I110: 70850 | J110: =J109 -> 23000 | K110: 800 | L110: 87200 | M110: =M109 -> 32000 | N110: 500 | O110: 54500 | P110: =P109 -> 20000 | Q110: 500 | R110: 54500 | S110: 20000 | AC110: 2018-11-24T10:14:23.070
A111: 110 | B111: 400 | C111: 44000 | D111: 16000 | E111: 500 | F111: 55000 | G111: 20000 | H111: 650 | I111: 71500 | J111: 23000 | K111: 800 | L111: 88000 | M111: 32000 | N111: 500 | O111: 55000 | P111: 20000 | Q111: 500 | R111: 55000 | S111: 20000 | AC111: 2018-11-25T10:14:23.070
A112: 111 | B112: 400 | C112: 44400 | D112: 16000 | E112: 500 | F112: 55500 | G112: 20000 | H112: 650 | I112: 72150 | J112: 23000 | K112: 800 | L112: 88800 | M112: 32000 | N112: 500 | O112: 55500 | P112: 20000 | Q112: 500 | R112: 55500 | S112: 20000 | AC112: 2018-11-26T10:14:23.070
A113: 112 | B113: 400 | C113: 44800 | D113: 16000 | E113: 500 | F113: 56000 | G113: 20000 | H113: 650 | I113: 72800 | J113: 23000 | K113: 800 | L113: 89600 | M113: 32000 | N113: 500 | O113: 56000 | P113: 20000 | Q113: 500 | R113: 56000 | S113: 20000 | AC113: 2018-11-27T10:14:23.070
A114: 113 | B114: 400 | C114: 45200 | D114: 16000 | E114: 500 | F114: 56500 | G114: 20000 | H114: 650 | I114: 73450 | J114: 23000 | K114: 800 | L114: 90400 | M114: 32000 | N114: 500 | O114: 56500 | P114: 20000 | Q114: 500 | R114: 56500 | S114: 20000 | AC114: 2018-11-28T10:14:23.070
A115: 114 | B115: 400 | C115: 45600 | D115: 16000 | E115: 500 | F115: 57000 | G115: 20000 | H115: 650 | I115: 74100 | J115: 23000 | K115: 800 | L115: 91200 | M115: 32000 | N115: 500 | O115: 57000 | P115: 20000 | Q115: 500 | R115: 57000 | S115: 20000 | AC115: 2018-11-29T10:14:23.070
A116: 115 | B116: 400 | C116: 46000 | D116: 16000 | E116: 500 | F116: 57500 | G116: 20000 | H116: 650 | I116: 74750 | J116: 23000 | K116: 800 | L116: 92000 | M116: 32000 | N116: 500 | O116: 57500 | P116: 20000 | Q116: 500 | R116: 57500 | S116: 20000 | AC116: 2018-11-30T10:14:23.070
A117: 116 | B117: 400 | C117: 46400 | D117: 16000 | E117: 500 | F117: 58000 | G117: 20000 | H117: 650 | I117: 75400 | J117: 23000 | K117: 800 | L117: 92800 | M117: 32000 | N117: 500 | O117: 58000 | P117: 20000 | Q117: 500 | R117: 58000 | S117: 20000 | AC117: 2018-12-01T10:14:23.070
A118: 117 | B118: 400 | C118: 46800 | D118: 16000 | E118: 500 | F118: 58500 | G118: 20000 | H118: 650 | I118: 76050 | J118: 23000 | K118: 800 | L118: 93600 | M118: 32000 | N118: 500 | O118: 58500 | P118: 20000 | Q118: 500 | R118: 58500 | S118: 20000 | AC118: 2018-12-02T10:14:23.070
A119: 118 | B119: 400 | C119: 47200 | D119: 16000 | E119: 500 | F119: 59000 | G119: 20000 | H119: 650 | I119: 76700 | J119: 23000 | K119: 800 | L119: 94400 | M119: 32000 | N119: 500 | O119: 59000 | P119: 20000 | Q119: 500 | R119: 59000 | S119: 20000 | AC119: 2018-12-03T10:14:23.070
A120: 119 | B120: 400 | C120: 47600 | D120: 16000 | E120: 500 | F120: 59500 | G120: 20000 | H120: 650 | I120: 77350 | J120: 23000 | K120: 800 | L120: 95200 | M120: 32000 | N120: 500 | O120: 59500 | P120: 20000 | Q120: 500 | R120: 59500 | S120: 20000 | AC120: 2018-12-04T10:14:23.070
A121: 120 | B121: 400 | C121: 48000 | D121: 16000 | E121: 500 | F121: 60000 | G121: 20000 | H121: 650 | I121: 78000 | J121: 23000 | K121: 800 | L121: 96000 | M121: 32000 | N121: 500 | O121: 60000 | P121: 20000 | Q121: 500 | R121: 60000 | S121: 20000 | AC121: 2018-12-05T10:14:23.070
A122: 121 | B122: 400 | C122: 48400 | D122: =D121+D11 -> 20000 | E122: 500 | F122: 60500 | G122: =G121+5000 -> 25000 | H122: 650 | I122: 78650 | J122: =J121+5000 -> 28000 | K122: 800 | L122: 96800 | M122: =M121+M11 -> 40000 | N122: 500 | O122: 60500 | P122: =P121+P11 -> 25000 | Q122: 500 | R122: 60500 | S122: =S121+S11 -> 25000 | AC122: 2018-12-06T10:14:23.070
A123: 122 | B123: 400 | C123: 48800 | D123: =D122 -> 20000 | E123: 500 | F123: 61000 | G123: =G122 -> 25000 | H123: 650 | I123: 79300 | J123: =J122 -> 28000 | K123: 800 | L123: 97600 | M123: =M122 -> 40000 | N123: 500 | O123: 61000 | P123: =P122 -> 25000 | Q123: 500 | R123: 61000 | S123: =S122 -> 25000 | AC123: 2018-12-07T10:14:23.070
A124: 123 | B124: 400 | C124: 49200 | D124: =D123 -> 20000 | E124: 500 | F124: 61500 | G124: =G123 -> 25000 | H124: 650 | I124: 79950 | J124: =J123 -> 28000 | K124: 800 | L124: 98400 | M124: =M123 -> 40000 | N124: 500 | O124: 61500 | P124: =P123 -> 25000 | Q124: 500 | R124: 61500 | S124: =S123 -> 25000 | AC124: 2018-12-08T10:14:23.070
A125: 124 | B125: 400 | C125: 49600 | D125: 20000 | E125: 500 | F125: 62000 | G125: 25000 | H125: 650 | I125: 80600 | J125: 28000 | K125: 800 | L125: 99200 | M125: 40000 | N125: 500 | O125: 62000 | P125: 25000 | Q125: 500 | R125: 62000 | S125: 25000 | AC125: 2018-12-09T10:14:23.070
A126: 125 | B126: 400 | C126: 50000 | D126: 20000 | E126: 500 | F126: 62500 | G126: 25000 | H126: 650 | I126: 81250 | J126: 28000 | K126: 800 | L126: 100000 | M126: 40000 | N126: 500 | O126: 62500 | P126: 25000 | Q126: 500 | R126: 62500 | S126: 25000 | AC126: 2018-12-10T10:14:23.070
A127: 126 | B127: 400 | C127: 50400 | D127: 20000 | E127: 500 | F127: 63000 | G127: 25000 | H127: 650 | I127: 81900 | J127: 28000 | K127: 800 | L127: 100800 | M127: 40000 | N127: 500 | O127: 63000 | P127: 25000 | Q127: 500 | R127: 63000 | S127: 25000 | AC127: 2018-12-11T10:14:23.070
A128: 127 | B128: 400 | C128: 50800 | D128: 20000 | E128: 500 | F128: 63500 | G128: 25000 | H128: 650 | I128: 82550 | J128: 28000 | K128: 800 | L128: 101600 | M128: 40000 | N128: 500 | O128: 63500 | P128: 25000 | Q128: 500 | R128: 63500 | S128: 25000 | AC128: 2018-12-12T10:14:23.070
A129: 128 | B129: 400 | C129: 51200 | D129: 20000 | E129: 500 | F129: 64000 | G129: 25000 | H129: 650 | I129: 83200 | J129: 28000 | K129: 800 | L129: 102400 | M129: 40000 | N129: 500 | O129: 64000 | P129: 25000 | Q129: 500 | R129: 64000 | S129: 25000 | AC129: 2018-12-13T10:14:23.070
A130: 129 | B130: 400 | C130: 51600 | D130: 20000 | E130: 500 | F130: =E130*A130 -> 64500 | G130: 25000 | H130: 650 | I130: 83850 | J130: 28000 | K130: 800 | L130: 103200 | M130: 40000 | N130: 500 | O130: =N130*A130 -> 64500 | P130: 25000 | Q130: 500 | R130: =Q130*A130 -> 64500 | S130: 25000 | AC130: 2018-12-14T10:14:23.070
A131: 130 | B131: 400 | C131: =B131*A131 -> 52000 | D131: 20000 | E131: 500 | F131: 65000 | G131: 25000 | H131: 650 | I131: 84500 | J131: 28000 | K131: 800 | L131: 104000 | M131: 40000 | N131: 500 | O131: 65000 | P131: 25000 | Q131: 500 | R131: 65000 | S131: 25000 | AC131: =AC130+1 -> 2018-12-15T10:14:23.070
A132: 131 | B132: =B131 -> 400 | C132: 52400 | D132: 20000 | E132: 500 | F132: 65500 | G132: 25000 | H132: 650 | I132: =H132*A132 -> 85150 | J132: 28000 | K132: 800 | L132: =K132*A132 -> 104800 | M132: 40000 | N132: 500 | O132: 65500 | P132: 25000 | Q132: 500 | R132: 65500 | S132: 25000 | AC132: 2018-12-16T10:14:23.070
A133: 132 | B133: 400 | C133: 52800 | D133: 20000 | E133: 500 | F133: 66000 | G133: 25000 | H133: 650 | I133: 85800 | J133: 28000 | K133: 800 | L133: 105600 | M133: 40000 | N133: 500 | O133: 66000 | P133: 25000 | Q133: 500 | R133: 66000 | S133: 25000 | AC133: 2018-12-17T10:14:23.070
A134: 133 | B134: 400 | C134: 53200 | D134: 20000 | E134: 500 | F134: 66500 | G134: 25000 | H134: 650 | I134: 86450 | J134: 28000 | K134: 800 | L134: 106400 | M134: 40000 | N134: 500 | O134: 66500 | P134: 25000 | Q134: 500 | R134: 66500 | S134: 25000 | AC134: 2018-12-18T10:14:23.070
A135: 134 | B135: 400 | C135: 53600 | D135: 20000 | E135: 500 | F135: 67000 | G135: 25000 | H135: 650 | I135: 87100 | J135: 28000 | K135: 800 | L135: 107200 | M135: 40000 | N135: 500 | O135: 67000 | P135: 25000 | Q135: 500 | R135: 67000 | S135: 25000 | AC135: 2018-12-19T10:14:23.070
A136: 135 | B136: 400 | C136: 54000 | D136: 20000 | E136: 500 | F136: 67500 | G136: 25000 | H136: 650 | I136: 87750 | J136: 28000 | K136: 800 | L136: 108000 | M136: 40000 | N136: 500 | O136: 67500 | P136: 25000 | Q136: 500 | R136: 67500 | S136: 25000 | AC136: 2018-12-20T10:14:23.070
A137: 136 | B137: 400 | C137: 54400 | D137: 20000 | E137: 500 | F137: 68000 | G137: 25000 | H137: 650 | I137: 88400 | J137: 28000 | K137: 800 | L137: 108800 | M137: 40000 | N137: 500 | O137: 68000 | P137: 25000 | Q137: 500 | R137: 68000 | S137: 25000 | AC137: 2018-12-21T10:14:23.070
A138: 137 | B138: 400 | C138: 54800 | D138: 20000 | E138: 500 | F138: 68500 | G138: 25000 | H138: 650 | I138: 89050 | J138: 28000 | K138: 800 | L138: 109600 | M138: 40000 | N138: 500 | O138: 68500 | P138: 25000 | Q138: 500 | R138: 68500 | S138: 25000 | AC138: 2018-12-22T10:14:23.070
A139: 138 | B139: 400 | C139: 55200 | D139: 20000 | E139: 500 | F139: 69000 | G139: 25000 | H139: 650 | I139: 89700 | J139: 28000 | K139: 800 | L139: 110400 | M139: 40000 | N139: 500 | O139: 69000 | P139: 25000 | Q139: 500 | R139: 69000 | S139: 25000 | AC139: 2018-12-23T10:14:23.070
A140: 139 | B140: 400 | C140: 55600 | D140: =D139 -> 20000 | E140: 500 | F140: 69500 | G140: =G139 -> 25000 | H140: 650 | I140: 90350 | J140: =J139 -> 28000 | K140: 800 | L140: 111200 | M140: =M139 -> 40000 | N140: 500 | O140: 69500 | P140: =P139 -> 25000 | Q140: 500 | R140: 69500 | S140: 25000 | AC140: 2018-12-24T10:14:23.070
A141: 140 | B141: 400 | C141: 56000 | D141: 20000 | E141: 500 | F141: 70000 | G141: 25000 | H141: 650 | I141: 91000 | J141: 28000 | K141: 800 | L141: 112000 | M141: 40000 | N141: 500 | O141: 70000 | P141: 25000 | Q141: 500 | R141: 70000 | S141: 25000 | AC141: 2018-12-25T10:14:23.070
A142: 141 | B142: 400 | C142: 56400 | D142: 20000 | E142: 500 | F142: 70500 | G142: 25000 | H142: 650 | I142: 91650 | J142: 28000 | K142: 800 | L142: 112800 | M142: 40000 | N142: 500 | O142: 70500 | P142: 25000 | Q142: 500 | R142: 70500 | S142: 25000 | AC142: 2018-12-26T10:14:23.070
A143: 142 | B143: 400 | C143: 56800 | D143: 20000 | E143: 500 | F143: 71000 | G143: 25000 | H143: 650 | I143: 92300 | J143: 28000 | K143: 800 | L143: 113600 | M143: 40000 | N143: 500 | O143: 71000 | P143: 25000 | Q143: 500 | R143: 71000 | S143: 25000 | AC143: 2018-12-27T10:14:23.070
A144: 143 | B144: 400 | C144: 57200 | D144: 20000 | E144: 500 | F144: 71500 | G144: 25000 | H144: 650 | I144: 92950 | J144: 28000 | K144: 800 | L144: 114400 | M144: 40000 | N144: 500 | O144: 71500 | P144: 25000 | Q144: 500 | R144: 71500 | S144: 25000 | AC144: 2018-12-28T10:14:23.070
A145: 144 | B145: 400 | C145: 57600 | D145: 20000 | E145: 500 | F145: 72000 | G145: 25000 | H145: 650 | I145: 93600 | J145: 28000 | K145: 800 | L145: 115200 | M145: 40000 | N145: 500 | O145: 72000 | P145: 25000 | Q145: 500 | R145: 72000 | S145: 25000 | AC145: 2018-12-29T10:14:23.070
A146: 145 | B146: 400 | C146: 58000 | D146: 20000 | E146: 500 | F146: 72500 | G146: 25000 | H146: 650 | I146: 94250 | J146: 28000 | K146: 800 | L146: 116000 | M146: 40000 | N146: 500 | O146: 72500 | P146: 25000 | Q146: 500 | R146: 72500 | S146: 25000 | AC146: 2018-12-30T10:14:23.070
A147: 146 | B147: 400 | C147: 58400 | D147: 20000 | E147: 500 | F147: 73000 | G147: 25000 | H147: 650 | I147: 94900 | J147: 28000 | K147: 800 | L147: 116800 | M147: 40000 | N147: 500 | O147: 73000 | P147: 25000 | Q147: 500 | R147: 73000 | S147: 25000 | AC147: 2018-12-31T10:14:23.070
A148: 147 | B148: 400 | C148: 58800 | D148: 20000 | E148: 500 | F148: 73500 | G148: 25000 | H148: 650 | I148: 95550 | J148: 28000 | K148: 800 | L148: 117600 | M148: 40000 | N148: 500 | O148: 73500 | P148: 25000 | Q148: 500 | R148: 73500 | S148: 25000 | AC148: 2019-01-01T10:14:23.070
A149: 148 | B149: 400 | C149: 59200 | D149: 20000 | E149: 500 | F149: 74000 | G149: 25000 | H149: 650 | I149: 96200 | J149: 28000 | K149: 800 | L149: 118400 | M149: 40000 | N149: 500 | O149: 74000 | P149: 25000 | Q149: 500 | R149: 74000 | S149: 25000 | AC149: 2019-01-02T10:14:23.070
A150: 149 | B150: 400 | C150: 59600 | D150: 20000 | E150: 500 | F150: 74500 | G150: 25000 | H150: 650 | I150: 96850 | J150: 28000 | K150: 800 | L150: 119200 | M150: 40000 | N150: 500 | O150: 74500 | P150: 25000 | Q150: 500 | R150: 74500 | S150: 25000 | AC150: 2019-01-03T10:14:23.070
A151: 150 | B151: 400 | C151: 60000 | D151: 20000 | E151: 500 | F151: 75000 | G151: 25000 | H151: 650 | I151: 97500 | J151: 28000 | K151: 800 | L151: 120000 | M151: 40000 | N151: 500 | O151: 75000 | P151: 25000 | Q151: 500 | R151: 75000 | S151: 25000 | AC151: 2019-01-04T10:14:23.070
A152: 151 | B152: 400 | C152: 60400 | D152: =D151+D11 -> 24000 | E152: 500 | F152: 75500 | G152: =G151+5000 -> 30000 | H152: 650 | I152: 98150 | J152: =J151+5000 -> 33000 | K152: 800 | L152: 120800 | M152: =M151+M11 -> 48000 | N152: 500 | O152: 75500 | P152: =P151+P11 -> 30000 | Q152: 500 | R152: 75500 | S152: =S151+S11 -> 30000 | AC152: 2019-01-05T10:14:23.070
A153: 152 | B153: 400 | C153: 60800 | D153: =D152 -> 24000 | E153: 500 | F153: 76000 | G153: =G152 -> 30000 | H153: 650 | I153: 98800 | J153: =J152 -> 33000 | K153: 800 | L153: 121600 | M153: =M152 -> 48000 | N153: 500 | O153: 76000 | P153: =P152 -> 30000 | Q153: 500 | R153: 76000 | S153: =S152 -> 30000 | AC153: 2019-01-06T10:14:23.070
A154: 153 | B154: 400 | C154: 61200 | D154: =D153 -> 24000 | E154: 500 | F154: 76500 | G154: =G153 -> 30000 | H154: 650 | I154: 99450 | J154: =J153 -> 33000 | K154: 800 | L154: 122400 | M154: =M153 -> 48000 | N154: 500 | O154: 76500 | P154: =P153 -> 30000 | Q154: 500 | R154: 76500 | S154: =S153 -> 30000 | AC154: 2019-01-07T10:14:23.070
A155: 154 | B155: 400 | C155: 61600 | D155: 24000 | E155: 500 | F155: 77000 | G155: 30000 | H155: 650 | I155: 100100 | J155: 33000 | K155: 800 | L155: 123200 | M155: 48000 | N155: 500 | O155: 77000 | P155: 30000 | Q155: 500 | R155: 77000 | S155: 30000 | AC155: 2019-01-08T10:14:23.070
A156: 155 | B156: 400 | C156: 62000 | D156: 24000 | E156: 500 | F156: 77500 | G156: 30000 | H156: 650 | I156: 100750 | J156: 33000 | K156: 800 | L156: 124000 | M156: 48000 | N156: 500 | O156: 77500 | P156: 30000 | Q156: 500 | R156: 77500 | S156: 30000 | AC156: 2019-01-09T10:14:23.070
A157: 156 | B157: 400 | C157: 62400 | D157: 24000 | E157: 500 | F157: 78000 | G157: 30000 | H157: 650 | I157: 101400 | J157: 33000 | K157: 800 | L157: 124800 | M157: 48000 | N157: 500 | O157: 78000 | P157: 30000 | Q157: 500 | R157: 78000 | S157: 30000 | AC157: 2019-01-10T10:14:23.070
A158: 157 | B158: 400 | C158: 62800 | D158: 24000 | E158: 500 | F158: 78500 | G158: 30000 | H158: 650 | I158: 102050 | J158: 33000 | K158: 800 | L158: 125600 | M158: 48000 | N158: 500 | O158: 78500 | P158: 30000 | Q158: 500 | R158: 78500 | S158: 30000 | AC158: 2019-01-11T10:14:23.070
A159: 158 | B159: 400 | C159: 63200 | D159: 24000 | E159: 500 | F159: 79000 | G159: 30000 | H159: 650 | I159: 102700 | J159: 33000 | K159: 800 | L159: 126400 | M159: 48000 | N159: 500 | O159: 79000 | P159: 30000 | Q159: 500 | R159: 79000 | S159: 30000 | AC159: 2019-01-12T10:14:23.070
A160: 159 | B160: 400 | C160: 63600 | D160: 24000 | E160: 500 | F160: 79500 | G160: 30000 | H160: 650 | I160: 103350 | J160: 33000 | K160: 800 | L160: 127200 | M160: 48000 | N160: 500 | O160: 79500 | P160: 30000 | Q160: 500 | R160: 79500 | S160: 30000 | AC160: 2019-01-13T10:14:23.070
A161: 160 | B161: 400 | C161: 64000 | D161: 24000 | E161: 500 | F161: 80000 | G161: 30000 | H161: 650 | I161: 104000 | J161: 33000 | K161: 800 | L161: 128000 | M161: 48000 | N161: 500 | O161: 80000 | P161: 30000 | Q161: 500 | R161: 80000 | S161: 30000 | AC161: 2019-01-14T10:14:23.070
A162: 161 | B162: 400 | C162: 64400 | D162: 24000 | E162: 500 | F162: 80500 | G162: 30000 | H162: 650 | I162: 104650 | J162: 33000 | K162: 800 | L162: 128800 | M162: 48000 | N162: 500 | O162: 80500 | P162: 30000 | Q162: 500 | R162: 80500 | S162: 30000 | AC162: 2019-01-15T10:14:23.070
A163: 162 | B163: 400 | C163: 64800 | D163: 24000 | E163: 500 | F163: 81000 | G163: 30000 | H163: 650 | I163: 105300 | J163: 33000 | K163: 800 | L163: 129600 | M163: 48000 | N163: 500 | O163: 81000 | P163: 30000 | Q163: 500 | R163: 81000 | S163: 30000 | AC163: 2019-01-16T10:14:23.070
A164: 163 | B164: 400 | C164: 65200 | D164: 24000 | E164: 500 | F164: 81500 | G164: 30000 | H164: 650 | I164: 105950 | J164: 33000 | K164: 800 | L164: 130400 | M164: 48000 | N164: 500 | O164: 81500 | P164: 30000 | Q164: 500 | R164: 81500 | S164: 30000 | AC164: 2019-01-17T10:14:23.070
A165: 164 | B165: 400 | C165: 65600 | D165: 24000 | E165: 500 | F165: 82000 | G165: 30000 | H165: 650 | I165: 106600 | J165: 33000 | K165: 800 | L165: 131200 | M165: 48000 | N165: 500 | O165: 82000 | P165: 30000 | Q165: 500 | R165: 82000 | S165: 30000 | AC165: 2019-01-18T10:14:23.070
A166: 165 | B166: 400 | C166: 66000 | D166: 24000 | E166: 500 | F166: 82500 | G166: 30000 | H166: 650 | I166: 107250 | J166: 33000 | K166: 800 | L166: 132000 | M166: 48000 | N166: 500 | O166: 82500 | P166: 30000 | Q166: 500 | R166: 82500 | S166: 30000 | AC166: 2019-01-19T10:14:23.070
A167: 166 | B167: 400 | C167: 66400 | D167: 24000 | E167: 500 | F167: 83000 | G167: 30000 | H167: 650 | I167: 107900 | J167: 33000 | K167: 800 | L167: 132800 | M167: 48000 | N167: 500 | O167: 83000 | P167: 30000 | Q167: 500 | R167: 83000 | S167: 30000 | AC167: 2019-01-20T10:14:23.070
A168: 167 | B168: 400 | C168: 66800 | D168: 24000 | E168: 500 | F168: 83500 | G168: 30000 | H168: 650 | I168: 108550 | J168: 33000 | K168: 800 | L168: 133600 | M168: 48000 | N168: 500 | O168: 83500 | P168: 30000 | Q168: 500 | R168: 83500 | S168: 30000 | AC168: 2019-01-21T10:14:23.070
A169: 168 | B169: 400 | C169: 67200 | D169: 24000 | E169: 500 | F169: 84000 | G169: 30000 | H169: 650 | I169: 109200 | J169: 33000 | K169: 800 | L169: 134400 | M169: 48000 | N169: 500 | O169: 84000 | P169: 30000 | Q169: 500 | R169: 84000 | S169: 30000 | AC169: 2019-01-22T10:14:23.070
A170: 169 | B170: 400 | C170: 67600 | D170: =D169 -> 24000 | E170: 500 | F170: 84500 | G170: =G169 -> 30000 | H170: 650 | I170: 109850 | J170: =J169 -> 33000 | K170: 800 | L170: 135200 | M170: =M169 -> 48000 | N170: 500 | O170: 84500 | P170: =P169 -> 30000 | Q170: 500 | R170: 84500 | S170: 30000 | AC170: 2019-01-23T10:14:23.070
A171: 170 | B171: 400 | C171: 68000 | D171: 24000 | E171: 500 | F171: 85000 | G171: 30000 | H171: 650 | I171: 110500 | J171: 33000 | K171: 800 | L171: 136000 | M171: 48000 | N171: 500 | O171: 85000 | P171: 30000 | Q171: 500 | R171: 85000 | S171: 30000 | AC171: 2019-01-24T10:14:23.070
A172: 171 | B172: 400 | C172: 68400 | D172: 24000 | E172: 500 | F172: 85500 | G172: 30000 | H172: 650 | I172: 111150 | J172: 33000 | K172: 800 | L172: 136800 | M172: 48000 | N172: 500 | O172: 85500 | P172: 30000 | Q172: 500 | R172: 85500 | S172: 30000 | AC172: 2019-01-25T10:14:23.070
A173: 172 | B173: 400 | C173: 68800 | D173: 24000 | E173: 500 | F173: 86000 | G173: 30000 | H173: 650 | I173: 111800 | J173: 33000 | K173: 800 | L173: 137600 | M173: 48000 | N173: 500 | O173: 86000 | P173: 30000 | Q173: 500 | R173: 86000 | S173: 30000 | AC173: 2019-01-26T10:14:23.070
A174: 173 | B174: 400 | C174: 69200 | D174: 24000 | E174: 500 | F174: 86500 | G174: 30000 | H174: 650 | I174: 112450 | J174: 33000 | K174: 800 | L174: 138400 | M174: 48000 | N174: 500 | O174: 86500 | P174: 30000 | Q174: 500 | R174: 86500 | S174: 30000 | AC174: 2019-01-27T10:14:23.070
A175: 174 | B175: 400 | C175: 69600 | D175: 24000 | E175: 500 | F175: 87000 | G175: 30000 | H175: 650 | I175: 113100 | J175: 33000 | K175: 800 | L175: 139200 | M175: 48000 | N175: 500 | O175: 87000 | P175: 30000 | Q175: 500 | R175: 87000 | S175: 30000 | AC175: 2019-01-28T10:14:23.070
A176: 175 | B176: 400 | C176: 70000 | D176: 24000 | E176: 500 | F176: 87500 | G176: 30000 | H176: 650 | I176: 113750 | J176: 33000 | K176: 800 | L176: 140000 | M176: 48000 | N176: 500 | O176: 87500 | P176: 30000 | Q176: 500 | R176: 87500 | S176: 30000 | AC176: 2019-01-29T10:14:23.070
A177: 176 | B177: 400 | C177: 70400 | D177: 24000 | E177: 500 | F177: 88000 | G177: 30000 | H177: 650 | I177: 114400 | J177: 33000 | K177: 800 | L177: 140800 | M177: 48000 | N177: 500 | O177: 88000 | P177: 30000 | Q177: 500 | R177: 88000 | S177: 30000 | AC177: 2019-01-30T10:14:23.070
A178: 177 | B178: 400 | C178: 70800 | D178: 24000 | E178: 500 | F178: 88500 | G178: 30000 | H178: 650 | I178: 115050 | J178: 33000 | K178: 800 | L178: 141600 | M178: 48000 | N178: 500 | O178: 88500 | P178: 30000 | Q178: 500 | R178: 88500 | S178: 30000 | AC178: 2019-01-31T10:14:23.070
A179: 178 | B179: 400 | C179: 71200 | D179: 24000 | E179: 500 | F179: 89000 | G179: 30000 | H179: 650 | I179: 115700 | J179: 33000 | K179: 800 | L179: 142400 | M179: 48000 | N179: 500 | O179: 89000 | P179: 30000 | Q179: 500 | R179: 89000 | S179: 30000 | AC179: 2019-02-01T10:14:23.070
A180: 179 | B180: 400 | C180: 71600 | D180: 24000 | E180: 500 | F180: 89500 | G180: 30000 | H180: 650 | I180: 116350 | J180: 33000 | K180: 800 | L180: 143200 | M180: 48000 | N180: 500 | O180: 89500 | P180: 30000 | Q180: 500 | R180: 89500 | S180: 30000 | AC180: 2019-02-02T10:14:23.070
A181: 180 | B181: 400 | C181: 72000 | D181: 24000 | E181: 500 | F181: 90000 | G181: 30000 | H181: 650 | I181: 117000 | J181: 33000 | K181: 800 | L181: 144000 | M181: 48000 | N181: 500 | O181: 90000 | P181: 30000 | Q181: 500 | R181: 90000 | S181: 30000 | AC181: 2019-02-03T10:14:23.070
A182: 181 | B182: 400 | C182: 72400 | D182: =D181+D11 -> 28000 | E182: 500 | F182: 90500 | G182: =G181+5000 -> 35000 | H182: 650 | I182: 117650 | J182: =J181+5000 -> 38000 | K182: 800 | L182: 144800 | M182: =M181+M11 -> 56000 | N182: 500 | O182: 90500 | P182: =P181+P11 -> 35000 | Q182: 500 | R182: 90500 | S182: =S181+S11 -> 35000 | AC182: 2019-02-04T10:14:23.070
A183: 182 | B183: 400 | C183: 72800 | D183: =D182 -> 28000 | E183: 500 | F183: 91000 | G183: =G182 -> 35000 | H183: 650 | I183: 118300 | J183: =J182 -> 38000 | K183: 800 | L183: 145600 | M183: =M182 -> 56000 | N183: 500 | O183: 91000 | P183: =P182 -> 35000 | Q183: 500 | R183: 91000 | S183: =S182 -> 35000 | AC183: 2019-02-05T10:14:23.070
A184: 183 | B184: 400 | C184: 73200 | D184: =D183 -> 28000 | E184: 500 | F184: 91500 | G184: =G183 -> 35000 | H184: 650 | I184: 118950 | J184: =J183 -> 38000 | K184: 800 | L184: 146400 | M184: =M183 -> 56000 | N184: 500 | O184: 91500 | P184: =P183 -> 35000 | Q184: 500 | R184: 91500 | S184: =S183 -> 35000 | AC184: 2019-02-06T10:14:23.070
A185: 184 | B185: 400 | C185: 73600 | D185: 28000 | E185: 500 | F185: 92000 | G185: 35000 | H185: 650 | I185: 119600 | J185: 38000 | K185: 800 | L185: 147200 | M185: 56000 | N185: 500 | O185: 92000 | P185: 35000 | Q185: 500 | R185: 92000 | S185: 35000 | AC185: 2019-02-07T10:14:23.070
A186: 185 | B186: 400 | C186: 74000 | D186: 28000 | E186: 500 | F186: 92500 | G186: 35000 | H186: 650 | I186: 120250 | J186: 38000 | K186: 800 | L186: 148000 | M186: 56000 | N186: 500 | O186: 92500 | P186: 35000 | Q186: 500 | R186: 92500 | S186: 35000 | AC186: 2019-02-08T10:14:23.070
A187: 186 | B187: 400 | C187: 74400 | D187: 28000 | E187: 500 | F187: 93000 | G187: 35000 | H187: 650 | I187: 120900 | J187: 38000 | K187: 800 | L187: 148800 | M187: 56000 | N187: 500 | O187: 93000 | P187: 35000 | Q187: 500 | R187: 93000 | S187: 35000 | AC187: 2019-02-09T10:14:23.070
A188: 187 | B188: 400 | C188: 74800 | D188: 28000 | E188: 500 | F188: 93500 | G188: 35000 | H188: 650 | I188: 121550 | J188: 38000 | K188: 800 | L188: 149600 | M188: 56000 | N188: 500 | O188: 93500 | P188: 35000 | Q188: 500 | R188: 93500 | S188: 35000 | AC188: 2019-02-10T10:14:23.070
A189: 188 | B189: 400 | C189: 75200 | D189: 28000 | E189: 500 | F189: 94000 | G189: 35000 | H189: 650 | I189: 122200 | J189: 38000 | K189: 800 | L189: 150400 | M189: 56000 | N189: 500 | O189: 94000 | P189: 35000 | Q189: 500 | R189: 94000 | S189: 35000 | AC189: 2019-02-11T10:14:23.070
A190: 189 | B190: 400 | C190: 75600 | D190: 28000 | E190: 500 | F190: 94500 | G190: 35000 | H190: 650 | I190: 122850 | J190: 38000 | K190: 800 | L190: 151200 | M190: 56000 | N190: 500 | O190: 94500 | P190: 35000 | Q190: 500 | R190: 94500 | S190: 35000 | AC190: 2019-02-12T10:14:23.070
A191: 190 | B191: 400 | C191: 76000 | D191: 28000 | E191: 500 | F191: 95000 | G191: 35000 | H191: 650 | I191: 123500 | J191: 38000 | K191: 800 | L191: 152000 | M191: 56000 | N191: 500 | O191: 95000 | P191: 35000 | Q191: 500 | R191: 95000 | S191: 35000 | AC191: 2019-02-13T10:14:23.070
A192: 191 | B192: 400 | C192: 76400 | D192: 28000 | E192: 500 | F192: 95500 | G192: 35000 | H192: 650 | I192: 124150 | J192: 38000 | K192: 800 | L192: 152800 | M192: 56000 | N192: 500 | O192: 95500 | P192: 35000 | Q192: 500 | R192: 95500 | S192: 35000 | AC192: 2019-02-14T10:14:23.070
A193: 192 | B193: 400 | C193: 76800 | D193: 28000 | E193: 500 | F193: 96000 | G193: 35000 | H193: 650 | I193: 124800 | J193: 38000 | K193: 800 | L193: 153600 | M193: 56000 | N193: 500 | O193: 96000 | P193: 35000 | Q193: 500 | R193: 96000 | S193: 35000 | AC193: 2019-02-15T10:14:23.070
A194: 193 | B194: 400 | C194: 77200 | D194: 28000 | E194: 500 | F194: =E194*A194 -> 96500 | G194: 35000 | H194: 650 | I194: 125450 | J194: 38000 | K194: 800 | L194: 154400 | M194: 56000 | N194: 500 | O194: =N194*A194 -> 96500 | P194: 35000 | Q194: 500 | R194: =Q194*A194 -> 96500 | S194: 35000 | AC194: 2019-02-16T10:14:23.070
A195: 194 | B195: 400 | C195: =B195*A195 -> 77600 | D195: 28000 | E195: 500 | F195: 97000 | G195: 35000 | H195: 650 | I195: 126100 | J195: 38000 | K195: 800 | L195: 155200 | M195: 56000 | N195: 500 | O195: 97000 | P195: 35000 | Q195: 500 | R195: 97000 | S195: 35000 | AC195: =AC194+1 -> 2019-02-17T10:14:23.070
A196: 195 | B196: =B195 -> 400 | C196: 78000 | D196: 28000 | E196: 500 | F196: 97500 | G196: 35000 | H196: 650 | I196: =H196*A196 -> 126750 | J196: 38000 | K196: 800 | L196: =K196*A196 -> 156000 | M196: 56000 | N196: 500 | O196: 97500 | P196: 35000 | Q196: 500 | R196: 97500 | S196: 35000 | AC196: 2019-02-18T10:14:23.070
A197: 196 | B197: 400 | C197: 78400 | D197: 28000 | E197: 500 | F197: 98000 | G197: 35000 | H197: 650 | I197: 127400 | J197: 38000 | K197: 800 | L197: 156800 | M197: 56000 | N197: 500 | O197: 98000 | P197: 35000 | Q197: 500 | R197: 98000 | S197: 35000 | AC197: 2019-02-19T10:14:23.070
A198: 197 | B198: 400 | C198: 78800 | D198: 28000 | E198: 500 | F198: 98500 | G198: 35000 | H198: 650 | I198: 128050 | J198: 38000 | K198: 800 | L198: 157600 | M198: 56000 | N198: 500 | O198: 98500 | P198: 35000 | Q198: 500 | R198: 98500 | S198: 35000 | AC198: 2019-02-20T10:14:23.070
A199: 198 | B199: 400 | C199: 79200 | D199: 28000 | E199: 500 | F199: 99000 | G199: 35000 | H199: 650 | I199: 128700 | J199: 38000 | K199: 800 | L199: 158400 | M199: 56000 | N199: 500 | O199: 99000 | P199: 35000 | Q199: 500 | R199: 99000 | S199: 35000 | AC199: 2019-02-21T10:14:23.070
A200: 199 | B200: 400 | C200: 79600 | D200: =D199 -> 28000 | E200: 500 | F200: 99500 | G200: =G199 -> 35000 | H200: 650 | I200: 129350 | J200: =J199 -> 38000 | K200: 800 | L200: 159200 | M200: =M199 -> 56000 | N200: 500 | O200: 99500 | P200: =P199 -> 35000 | Q200: 500 | R200: 99500 | S200: 35000 | AC200: 2019-02-22T10:14:23.070
... 165 more rows
